Workbook

Sheet CUA1
A1: Cuadro No. 1
A2: Ejecución del Presupuesto General de la Nación
A3: Acumulada a Febrero 2025
A4: Miles de millones de pesos corrientes
B5: Concepto | C5: Apropiación Vigente | D5: Compromiso | E5: Obligación | F5: Pago | G5: Apropiación sin comprometer | H5: Porcentaje de ejecución
C6: Vigente | H6: Comp./Apro. | I6: Oblig./Apro. | J6: Pago/Apro. | K6: Oblig./Comp. | L6: Pago/Oblig.
C7: (1) | D7: (2) | E7: (3) | F7: (4) | G7: (5)=(1-2) | H7: (6)=(2/1) | I7: (7)=(3/1) | J7: (8)=(4/1) | K7: (9)=(3/2) | L7: (10)=(4/3)
A8: I. | B8: FUNCIONAMIENTO | C8: 327965.7113 | D8: 68478.75729 | E8: 37366.09401 | F8: 36540.98002 | G8: 259486.954 | H8: 20.87985266 | I8: 11.39329287 | J8: 11.14170743 | K8: 54.56596393 | L8: 97.79181099
B9: Gastos de Personal | C9: 60132.16541 | D9: 8374.975849 | E9: 7034.416117 | F9: 7002.676544 | G9: 51757.18956 | H9: 13.92761394 | I9: 11.69825844 | J9: 11.64547542 | K9: 83.99327048 | L9: 99.54879591
B10: Adquisición de Bienes y Servicios | C10: 15584.31092 | D10: 7452.603527 | E10: 1076.220235 | F10: 992.4605805 | G10: 8131.70739 | H10: 47.82119381 | I10: 6.905792887 | J10: 6.368331496 | K10: 14.44086259 | L10: 92.21723848
B11: Transferencias | C11: 247805.9416 | D11: 51479.89584 | E11: 29016.68544 | F11: 28377.95513 | G11: 196326.0458 | H11: 20.77427825 | I11: 11.70943894 | J11: 11.45168471 | K11: 56.36508187 | L11: 97.79874821
B12: Gastos de Comercialización y Producción | C12: 2052.959832 | D12: 549.3867451 | E12: 123.1438427 | F12: 60.97336245 | G12: 1503.573087 | H12: 26.76071575 | I12: 5.998356168 | J12: 2.970022185 | K12: 22.41478226 | L12: 49.51393518
B13: Adquisición de Activos Financieros | C13: 759.1561267 | D13: 501.5514153 | E13: 0 | F13: 0 | G13: 257.6047114 | H13: 66.06696536 | I13: 0 | J13: 0 | K13: 0 | L13: 0
B14: Disminución de Pasivos | C14: 351.7793547 | D14: 34.82015341 | E14: 34.00434917 | F14: 33.66730132 | G14: 316.9592013 | H14: 9.898293615 | I14: 9.666385681 | J14: 9.570573391 | K14: 97.65709178 | L14: 99.00880957
B15: Gastos por Tributos, Multas, Sanciones e Intereses de Mora | C15: 1279.397989 | D15: 85.52376572 | E15: 81.62402656 | F15: 73.24710661 | G15: 1193.874223 | H15: 6.684688148 | I15: 6.379877667 | J15: 5.725122851 | K15: 95.44016903 | L15: 89.73718854
A16: II. | B16: SERVICIO DE LA DEUDA | C16: 112605.1864 | D16: 11772.56063 | E16: 10626.33811 | F16: 9554.004947 | G16: 100832.6258 | H16: 10.45472328 | I16: 9.436810549 | J16: 8.484515903 | K16: 90.26360908 | L16: 89.90872349
B17: Servicio de la Deuda Pública Externa | C17: 41029.422 | D17: 5269.778109 | E17: 4136.132993 | F17: 3063.799892 | G17: 35759.64389 | H17: 12.84390043 | I17: 10.0808951 | J17: 7.467324038 | K17: 78.48780171 | L17: 74.07401786
B18: Principal | C18: 21772.59 | D18: 2728.849799 | E18: 2536.204064 | F18: 2536.204064 | G18: 19043.7402 | H18: 12.53341839 | I18: 11.64860985 | J18: 11.64860985 | K18: 92.94040531 | L18: 100
B19: Intereses | C19: 19104.45816 | D19: 2502.695046 | E19: 1585.635846 | F19: 515.7201139 | G19: 16601.76311 | H19: 13.10005772 | I19: 8.299821084 | J19: 2.69947522 | K19: 63.35713369 | L19: 32.52449894
B20: Comisiones y Otros Gastos | C20: 152.3738446 | D20: 38.23326399 | E20: 14.29308303 | F20: 11.87571404 | G20: 114.1405806 | H20: 25.09174989 | I20: 9.38027328 | J20: 7.79380088 | K20: 37.38389439 | L20: 83.08714094
B21: Servicio de la Deuda Pública Interna | C21: 71575.76439 | D21: 6502.782524 | E21: 6490.205115 | F21: 6490.205055 | G21: 65072.98187 | H21: 9.085173702 | I21: 9.067601541 | J21: 9.067601457 | K21: 99.80658421 | L21: 99.99999907
B22: Principal | C22: 28993.66678 | D22: 1085.127175 | E22: 1085.127175 | F22: 1085.127175 | G22: 27908.5396 | H22: 3.742635187 | I22: 3.742635187 | J22: 3.742635187 | K22: 100 | L22: 100
B23: Intereses | C23: 40380.19015 | D23: 5404.831158 | E23: 5404.831158 | F23: 5404.831098 | G23: 34975.35899 | H23: 13.38485812 | I23: 13.38485812 | J23: 13.38485797 | K23: 100 | L23: 99.99999888
B24: Comisiones y Otros Gastos | C24: 294.8098498 | D24: 12.82419061 | E24: 0.2467821113 | F24: 0.2467821113 | G24: 281.9856592 | H24: 4.34998716 | I24: 0.08370890984 | J24: 0.08370890984 | K24: 1.924348435 | L24: 100
B25: Fondo de contingencias | C25: 1907.097618 | D25: 0 | E25: 0 | F25: 0 | G25: 1907.097618 | H25: 0 | I25: 0 | J25: 0 | K25: 0 | L25: 0
A26: III. | B26: INVERSIÓN | C26: 82464.2348 | D26: 25748.43494 | E26: 1768.52774 | F26: 1705.947487 | G26: 56715.79985 | H26: 31.22376023 | I26: 2.144599709 | J26: 2.068711959 | K26: 6.868486351 | L26: 96.46144919
A27: IV. | B27: TOTAL (I + II + III) | C27: 523035.1325 | D27: 105999.7529 | E27: 49760.95985 | F27: 47800.93246 | G27: 417035.3796 | H27: 20.26627779 | I27: 9.513884779 | J27: 9.139143719 | K27: 46.9444112 | L27: 96.06111417
A28: V. | B28: TOTAL SIN DEUDA (I + III) | C28: 410429.9461 | D28: 94227.19224 | E28: 39134.62175 | F28: 38246.92751 | G28: 316202.7538 | H28: 22.95816695 | I28: 9.535030794 | J28: 9.318746811 | K28: 41.53219555 | L28: 97.73169078
A29: Fuente: Dirección General del Presupuesto Público Nacional- Subdirección de Análisis y Consolidación Presupuestal
C32: =+C27-'CUA2'!C27-'CUA3'!C25 -> 0 | D32: =+D27-'CUA2'!D27-'CUA3'!D25 -> 1.455191523e-11 | E32: =+E27-'CUA2'!E27-'CUA3'!E25 -> -1.273292582e-11 | F32: =+F27-'CUA2'!F27-'CUA3'!F25 -> -1.091393642e-11 | G32: =+G27-'CUA2'!G27-'CUA3'!G25 -> 3.637978807e-11

Sheet CUA2
A1: Cuadro No. 2
A2: Ejecución del presupuesto recursos Nación
A3: =+'CUA1'!A3:L3 -> Acumulada a Febrero 2025
A4: Miles de millones de pesos corrientes
B5: Concepto | C5: Apropiación Vigente | D5: Compromiso | E5: Obligación | F5: Pago | G5: Apropiación sin comprometer | H5: Porcentaje de ejecución
C6: Vigente | H6: Comp./Apro. | I6: Oblig./Apro. | J6: Pago/Apro. | K6: Oblig./Comp. | L6: Pago/Oblig.
C7: (1) | D7: (2) | E7: (3) | F7: (4) | G7: (5)=(1-2) | H7: (6)=(2/1) | I7: (7)=(3/1) | J7: (8)=(4/1) | K7: (9)=(3/2) | L7: (10)=(4/3)
A8: I. | B8: FUNCIONAMIENTO | C8: 314806.1045 | D8: 64036.2517 | E8: 34449.47564 | F8: 33730.7212 | G8: 250769.8528 | H8: 20.34148982 | I8: 10.94307739 | J8: 10.71476084 | K8: 53.79683339 | L8: 97.91359833
B9: Gastos de Personal | C9: 56533.72581 | D9: 7882.891296 | E9: 6635.646633 | F9: 6609.67911 | G9: 48650.83451 | H9: 13.94369676 | I9: 11.737501 | J9: 11.6915682 | K9: 84.17782745 | L9: 99.60866628
B10: Adquisición de Bienes y Servicios | C10: 14280.58863 | D10: 6811.762152 | E10: 994.8905814 | F10: 915.8746257 | G10: 7468.826482 | H10: 47.69944942 | I10: 6.966733703 | J10: 6.413423488 | K10: 14.60548033 | L10: 92.05782453
B11: Transferencias | C11: 241758.4754 | D11: 48697.09634 | E11: 26713.14245 | F11: 26107.59126 | G11: 193061.379 | H11: 20.14287038 | I11: 11.04951643 | J11: 10.79903868 | K11: 54.85571926 | L11: 97.73313381
B12: Gastos de Comercialización y Producción | C12: 113.326023 | D12: 35.20600359 | E12: 1.934062569 | F12: 1.934062569 | G12: 78.12001941 | H12: 31.06612467 | I12: 1.706635879 | J12: 1.706635879 | K12: 5.493558971 | L12: 100
B13: Adquisición de Activos Financieros | C13: 630.895 | D13: 501.5514153 | E13: 0 | F13: 0 | G13: 129.3435847 | H13: 79.49839756 | I13: 0 | J13: 0 | K13: 0 | L13: 0
B14: Disminución de Pasivos | C14: 335.0783547 | D14: 33.97991342 | E14: 33.18837131 | F14: 32.85132346 | G14: 301.0984413 | H14: 10.14088584 | I14: 9.904659865 | J14: 9.804072091 | K14: 97.6705588 | L14: 98.9844399
B15: Gastos por Tributos, Multas, Sanciones e Intereses de Mora | C15: 1154.015272 | D15: 73.76457835 | E15: 70.67353215 | F15: 62.79081856 | G15: 1080.250693 | H15: 6.391993256 | I15: 6.124141845 | J15: 5.44107345 | K15: 95.80957925 | L15: 88.84630024
A16: II. | B16: SERVICIO DE LA DEUDA | C16: 112605.1864 | D16: 11772.56063 | E16: 10626.33811 | F16: 9554.004947 | G16: 100832.6258 | H16: 10.45472328 | I16: 9.436810549 | J16: 8.484515903 | K16: 90.26360908 | L16: 89.90872349
B17: Servicio de la Deuda Pública Externa | C17: 41029.422 | D17: 5269.778109 | E17: 4136.132993 | F17: 3063.799892 | G17: 35759.64389 | H17: 12.84390043 | I17: 10.0808951 | J17: 7.467324038 | K17: 78.48780171 | L17: 74.07401786
B18: Principal | C18: 21772.59 | D18: 2728.849799 | E18: 2536.204064 | F18: 2536.204064 | G18: 19043.7402 | H18: 12.53341839 | I18: 11.64860985 | J18: 11.64860985 | K18: 92.94040531 | L18: 100
B19: Intereses | C19: 19104.45816 | D19: 2502.695046 | E19: 1585.635846 | F19: 515.7201139 | G19: 16601.76311 | H19: 13.10005772 | I19: 8.299821084 | J19: 2.69947522 | K19: 63.35713369 | L19: 32.52449894
B20: Comisiones y Otros Gastos | C20: 152.3738446 | D20: 38.23326399 | E20: 14.29308303 | F20: 11.87571404 | G20: 114.1405806 | H20: 25.09174989 | I20: 9.38027328 | J20: 7.79380088 | K20: 37.38389439 | L20: 83.08714094
B21: Servicio de la Deuda Pública Interna | C21: 71575.76439 | D21: 6502.782524 | E21: 6490.205115 | F21: 6490.205055 | G21: 65072.98187 | H21: 9.085173702 | I21: 9.067601541 | J21: 9.067601457 | K21: 99.80658421 | L21: 99.99999907
B22: Principal | C22: 28993.66678 | D22: 1085.127175 | E22: 1085.127175 | F22: 1085.127175 | G22: 27908.5396 | H22: 3.742635187 | I22: 3.742635187 | J22: 3.742635187 | K22: 100 | L22: 100
B23: Intereses | C23: 40380.19015 | D23: 5404.831158 | E23: 5404.831158 | F23: 5404.831098 | G23: 34975.35899 | H23: 13.38485812 | I23: 13.38485812 | J23: 13.38485797 | K23: 100 | L23: 99.99999888
B24: Comisiones y Otros Gastos | C24: 294.8098498 | D24: 12.82419061 | E24: 0.2467821113 | F24: 0.2467821113 | G24: 281.9856592 | H24: 4.34998716 | I24: 0.08370890984 | J24: 0.08370890984 | K24: 1.924348435 | L24: 100
B25: Fondo de contingencias | C25: 1907.097618 | D25: 0 | E25: 0 | F25: 0 | G25: 1907.097618 | H25: 0 | I25: 0 | J25: 0 | K25: 0 | L25: 0
A26: III. | B26: INVERSIÓN | C26: 68287.37772 | D26: 20893.38779 | E26: 1140.167822 | F26: 1102.211774 | G26: 47393.98993 | H26: 30.59626608 | I26: 1.669661159 | J26: 1.614078341 | K26: 5.457074906 | L26: 96.67101214
A27: IV. | B27: TOTAL (I + II + III) | C27: 495698.6686 | D27: 96702.20012 | E27: 46215.98157 | F27: 44386.93792 | G27: 398996.4685 | H27: 19.50826303 | I27: 9.3234024 | J27: 8.954419435 | K27: 47.79206834 | L27: 96.04240009
A28: V. | B28: TOTAL SIN DEUDA (I + III) | C28: 383093.4822 | D28: 84929.63948 | E28: 35589.64346 | F28: 34832.93297 | G28: 298163.8427 | H28: 22.16942951 | I28: 9.290067597 | J28: 9.092541271 | K28: 41.90485639 | L28: 97.87379021
A29: Fuente: Dirección General del Presupuesto Público Nacional- Subdirección de Análisis y Consolidación Presupuestal
C31: =+C27-'CUA5'!B8 -> 0 | D31: =+D28+'CUA3'!D26-'CUA1'!D28 -> 0 | E31: =+E28+'CUA3'!E26-'CUA1'!E28 -> 0 | F31: =+F28+'CUA3'!F26-'CUA1'!F28 -> 0 | G31: =+G28+'CUA3'!G26-'CUA1'!G28 -> 0
C37: =+C8/'CUA1'!C8 -> 0.959875053
C38: =+C16/'CUA1'!C16 -> 1

Sheet CUA3
A1: Cuadro No. 3
A2: Ejecución del presupuesto recursos Propios
A3: =+'CUA1'!A3:L3 -> Acumulada a Febrero 2025
A4: Miles de millones de pesos corrientes
B5: Concepto | C5: Apropiación Vigente | D5: Compromiso | E5: Obligación | F5: Pago | G5: Apropiación sin comprometer | H5: Porcentaje de ejecución
C6: Vigente | H6: Comp./Apro. | I6: Oblig./Apro. | J6: Pago/Apro. | K6: Oblig./Comp. | L6: Pago/Oblig.
C7: (1) | D7: (2) | E7: (3) | F7: (4) | G7: (5)=(1-2) | H7: (6)=(2/1) | I7: (7)=(3/1) | J7: (8)=(4/1) | K7: (9)=(3/2) | L7: (10)=(4/3)
A8: I. | B8: FUNCIONAMIENTO | C8: 13159.60679 | D8: 4442.505599 | E8: 2916.618371 | F8: 2810.258823 | G8: 8717.101188 | H8: 33.75865002 | I8: 22.16341581 | J8: 21.35518841 | K8: 65.65255364 | L8: 96.35332655
B9: Gastos de Personal | C9: 3598.439601 | D9: 492.0845537 | E9: 398.7694844 | F9: 392.9974339 | G9: 3106.355047 | H9: 13.6749427 | I9: 11.08173344 | J9: 10.92132918 | K9: 81.03678148 | L9: 98.55253455
B10: Adquisición de Bienes y Servicios | C10: 1303.722283 | D10: 640.8413751 | E10: 81.32965336 | F10: 76.58595474 | G10: 662.8809078 | H10: 49.15474587 | I10: 6.238265191 | J10: 5.87440713 | K10: 12.69107404 | L10: 94.16731977
B11: Transferencias | C11: 6047.466251 | D11: 2782.799501 | E11: 2303.542981 | F11: 2270.363869 | G11: 3264.66675 | H11: 46.01595752 | I11: 38.09104318 | J11: 37.54239833 | K11: 82.77789973 | L11: 98.55964866
B12: Gastos de Comercialización y Producción | C12: 1939.633809 | D12: 514.1807415 | E12: 121.2097801 | F12: 59.03929988 | G12: 1425.453067 | H12: 26.50916576 | I12: 6.249106381 | J12: 3.04383743 | K12: 23.57338001 | L12: 48.70836315
B13: Adquisición de Activos Financieros | C13: 128.2611267 | D13: 0 | E13: 0 | F13: 0 | G13: 128.2611267 | H13: 0 | I13: 0 | J13: 0 | K13: 0 | L13: 0
B14: Disminución de Pasivos | C14: 16.701 | D14: 0.840239991 | E14: 0.815977859 | F14: 0.815977859 | G14: 15.86076001 | H14: 5.03107593 | I14: 4.885802401 | J14: 4.885802401 | K14: 97.11247593 | L14: 100
B15: Gastos por Tributos, Multas, Sanciones e Intereses de Mora | C15: 125.3827171 | D15: 11.75918738 | E15: 10.95049442 | F15: 10.45628805 | G15: 113.6235297 | H15: 9.378634991 | I15: 8.733655381 | J15: 8.339497093 | K15: 93.12288398 | L15: 95.48690359
A16: II. | B16: SERVICIO DE LA DEUDA | C16: 0 | D16: 0 | E16: 0 | F16: 0 | G16: 0 | H16: 0 | I16: 0 | J16: 0 | K16: 0 | L16: 0
B17: Servicio de la Deuda Pública Externa | C17: 0 | D17: 0 | E17: 0 | F17: 0 | G17: 0 | H17: 0 | I17: 0 | J17: 0 | K17: 0 | L17: 0
B18: Principal | C18: 0 | D18: 0 | E18: 0 | F18: 0 | G18: 0 | H18: 0 | I18: 0 | J18: 0 | K18: 0 | L18: 0
B19: Intereses | C19: 0 | D19: 0 | E19: 0 | F19: 0 | G19: 0 | H19: 0 | I19: 0 | J19: 0 | K19: 0 | L19: 0
B20: Comisiones y Otros Gastos | C20: 0 | D20: 0 | E20: 0 | F20: 0 | G20: 0 | H20: 0 | I20: 0 | J20: 0 | K20: 0 | L20: 0
B21: Servicio de la Deuda Pública Interna | C21: 0 | D21: 0 | E21: 0 | F21: 0 | G21: 0 | H21: 0 | I21: 0 | J21: 0 | K21: 0 | L21: 0
B22: Principal | H22: 0 | I22: 0 | J22: 0 | K22: 0 | L22: 0
B23: Fondo de Contingencias | C23: 0 | D23: 0 | E23: 0 | F23: 0 | G23: 0 | H23: 0 | I23: 0 | J23: 0 | K23: 0 | L23: 0
A24: III. | B24: INVERSIÓN | C24: 14176.85708 | D24: 4855.047159 | E24: 628.3599179 | F24: 603.7357137 | G24: 9321.80992 | H24: 34.24628697 | I24: 4.432293522 | J24: 4.258600551 | K24: 12.94240607 | L24: 96.0811943
A25: IV. | B25: TOTAL (I + II + III) | C25: 27336.46387 | D25: 9297.552758 | E25: 3544.978289 | F25: 3413.994537 | G25: 18038.91111 | H25: 34.01154152 | I25: 12.96794752 | J25: 12.48879355 | K25: 38.12807931 | L25: 96.30509014
A26: V. | B26: TOTAL SIN DEUDA (I + III) | C26: 27336.46387 | D26: 9297.552758 | E26: 3544.978289 | F26: 3413.994537 | G26: 18038.91111 | H26: 34.01154152 | I26: 12.96794752 | J26: 12.48879355 | K26: 38.12807931 | L26: 96.30509014
A27: Fuente: Dirección General del Presupuesto Público Nacional- Subdirección de Análisis y Consolidación Presupuestal
C30: =+C25-'CUA6'!B8 -> 0 | D30: =+D25-'CUA6'!C8 -> 0 | E30: =+E25-'CUA6'!D8 -> 0 | F30: =+F25-'CUA6'!E8 -> 0
C34: =+C8/'CUA1'!C8 -> 0.04012494702
C35: =+C24/'CUA1'!C26 -> 0.1719152201

Sheet CUA4
A1: Cuadro No. 4
A2: Ejecución Presupuesto General de la Nación por sectores
A3: =+'CUA1'!A3:L3 -> Acumulada a Febrero 2025
A4: Miles de millones de pesos
A5: Sector | B5: Apropiación Vigente | C5: Compromiso | D5: Obligación | E5: Pago | F5: Apropiación sin comprometer | G5: Porcentaje de ejecución
B6: Vigente | G6: Comp./Apro. | H6: Oblig./Apro. | I6: Pago/Apro. | J6: Oblig./Comp. | K6: Pago/Oblig.
B7: (1) | C7: (2) | D7: (3) | E7: (4) | F7: (5)=(1-2) | G7: (6)=(2/1) | H7: (7)=(3/1) | I7: (8)=(4/1) | J7: (9)=(3/2) | K7: (10)=(4/3)
A8: TOTAL PGN | B8: 523035.1325 | C8: 105999.7529 | D8: 49760.95985 | E8: 47800.93246 | F8: 417035.3796 | G8: 20.26627779 | H8: 9.513884779 | I8: 9.139143719 | J8: 46.9444112 | K8: 96.06111417
A9: SERVICIO DE LA DEUDA PÚBLICA NACIONAL | B9: 109828.422 | C9: 11574.08992 | D9: 10427.8674 | E9: 9355.534238 | F9: 98254.33208 | G9: 10.53833763 | H9: 9.49468927 | I9: 8.518317998 | J9: 90.09665095 | K9: 89.71665902
A10: EDUCACIÓN | B10: 79242.74706 | C10: 26896.3978 | D10: 10450.06324 | E10: 9899.867172 | F10: 52346.34926 | G10: 33.94177865 | H10: 13.18740658 | I10: 12.49308932 | J10: 38.85302157 | K10: 94.73499773
A11: SALUD Y PROTECCIÓN SOCIAL | B11: 67103.09074 | C11: 12673.63566 | D11: 9346.432035 | E11: 9344.03559 | F11: 54429.45509 | G11: 18.88681358 | H11: 13.92846727 | I11: 13.92489599 | J11: 73.74704691 | K11: 99.97435979
A12: DEFENSA Y POLICÍA | B12: 59080.68297 | C12: 11417.01825 | D12: 6704.40533 | E12: 6553.368573 | F12: 47663.66472 | G12: 19.32445205 | H12: 11.34788055 | I12: 11.09223564 | J12: 58.7229098 | K12: 97.74720128
A13: TRABAJO | B13: 53404.42189 | C13: 4423.92229 | D13: 2835.795615 | E13: 2830.489016 | F13: 48980.4996 | G13: 8.283812713 | H13: 5.310038971 | I13: 5.300102343 | J13: 64.10138851 | K13: 99.81287091
A14: HACIENDA | B14: 35902.3877 | C14: 4288.97396 | D14: 1967.803431 | E14: 1965.051095 | F14: 31613.41374 | G14: 11.94620814 | H14: 5.480982065 | I14: 5.473315902 | J14: 45.88051709 | K14: 99.86013158
A15: TRANSPORTE | B15: 17126.79467 | C15: 7837.208836 | D15: 331.5445734 | E15: 289.5505108 | F15: 9289.585835 | G15: 45.75992757 | H15: 1.935823835 | I15: 1.690628728 | J15: 4.230390951 | K15: 87.33381092
A16: IGUALDAD Y EQUIDAD | B16: 12017.47558 | C16: 6455.126342 | D16: 665.2719884 | E16: 664.7564681 | F16: 5562.349239 | G16: 53.71449518 | H16: 5.535871355 | I16: 5.5315816 | J16: 10.30610329 | K16: 99.92250984
A17: MINAS Y ENERGÍA | B17: 11214.44332 | C17: 2424.989649 | D17: 2088.023862 | E17: 2084.73939 | F17: 8789.453669 | G17: 21.62380762 | H17: 18.6190594 | I17: 18.58977152 | J17: 86.10444433 | K17: 99.84269949
A18: RAMA JUDICIAL | B18: 10414.88358 | C18: 1441.704635 | D18: 1053.7964 | E18: 1042.917091 | F18: 8973.178943 | G18: 13.84273404 | H18: 10.11817743 | I18: 10.01371818 | J18: 73.09377901 | K18: 98.96760806
A19: INCLUSIÓN SOCIAL Y RECONCILIACIÓN | B19: 10052.11643 | C19: 915.4694834 | D19: 358.6454976 | E19: 358.0069848 | F19: 9136.646948 | G19: 9.107231195 | H19: 3.56786056 | I19: 3.561508536 | J19: 39.1761281 | K19: 99.82196547
A20: VIVIENDA, CIUDAD Y TERRITORIO | B20: 8625.806779 | C20: 2379.953623 | D20: 318.1163903 | E20: 318.0952192 | F20: 6245.853156 | G20: 27.59108433 | H20: 3.687961005 | I20: 3.687715566 | J20: 13.36649535 | K20: 99.99334486
A21: FISCALÍA | B21: 7137.16978 | C21: 1496.850908 | D21: 861.9435857 | E21: 849.9494057 | F21: 5640.318872 | G21: 20.97261175 | H21: 12.07682614 | I21: 11.90877381 | J21: 57.58379683 | K21: 98.60847273
A22: JUSTICIA Y DEL DERECHO | B22: 5520.699808 | C22: 1143.718246 | D22: 397.4950845 | E22: 358.6712428 | F22: 4376.981562 | G22: 20.71690702 | H22: 7.200085103 | I22: 6.496843793 | J22: 34.75463348 | K22: 90.23287503
A23: AGRICULTURA Y DESARROLLO RURAL | B23: 5025.540437 | C23: 1012.720912 | D23: 115.6560489 | E23: 102.5266038 | F23: 4012.819525 | G23: 20.15148271 | H23: 2.301365403 | I23: 2.040111011 | J23: 11.42032791 | K23: 88.64785264
A24: REGISTRADURÍA | B24: 4592.600812 | C24: 413.2506226 | D24: 111.1394433 | E24: 108.2296691 | F24: 4179.350189 | G24: 8.998182935 | H24: 2.419967418 | I24: 2.356609544 | J24: 26.89395665 | K24: 97.38187081
A25: ORGANISMOS DE CONTROL | B25: 4415.918145 | C25: 675.0685057 | D25: 423.4790811 | E25: 422.5468312 | F25: 3740.849639 | G25: 15.28716076 | H25: 9.589830862 | I25: 9.56871974 | J25: 62.73127505 | K25: 99.77985929
A26: INTERIOR | B26: 4312.408706 | C26: 2159.348446 | D26: 247.2014785 | E26: 244.1298548 | F26: 2153.06026 | G26: 50.07290805 | H26: 5.732329548 | I26: 5.661101985 | J26: 11.44796612 | K26: 98.75744123
A27: TECNOLOGÍAS DE LA INFORMACIÓN Y LAS COMUNICACIONES | B27: 2697.652453 | C27: 1430.533661 | D27: 142.1195007 | E27: 109.4849656 | F27: 1267.118792 | G27: 53.02883473 | H27: 5.268265767 | I27: 4.05852746 | J27: 9.93471909 | K27: 77.0372574
A28: PRESIDENCIA DE LA REPÚBLICA | B28: 2559.808026 | C28: 1225.779911 | D28: 62.3095954 | E28: 60.93246542 | F28: 1334.028115 | G28: 47.88561872 | H28: 2.434151107 | I28: 2.380352932 | J28: 5.083261263 | K28: 97.78985889
A29: RELACIONES EXTERIORES | B29: 2095.33793 | C29: 494.1956535 | D29: 211.5441141 | E29: 209.8406452 | F29: 1601.142277 | G29: 23.58548692 | H29: 10.09594257 | I29: 10.01464452 | J29: 42.80574154 | K29: 99.19474531
A30: AMBIENTE Y DESARROLLO SOSTENIBLE | B30: 1781.308693 | C30: 621.262014 | D30: 169.9600589 | E30: 169.6214809 | F30: 1160.046679 | G30: 34.87671825 | H30: 9.541302953 | I30: 9.522295692 | J30: 27.35722692 | K30: 99.80078967
A31: COMERCIO, INDUSTRIA Y TURISMO | B31: 1524.450332 | C31: 650.5173117 | D31: 72.37045718 | E31: 68.22110267 | F31: 873.9330204 | G31: 42.6722536 | H31: 4.747314862 | I31: 4.475127935 | J31: 11.12506245 | K31: 94.26650781
A32: CONGRESO DE LA REPÚBLICA | B32: 1313.628 | C32: 242.1342519 | D32: 124.2761196 | E32: 122.690786 | F32: 1071.493748 | G32: 18.43248256 | H32: 9.460526083 | I32: 9.339842484 | J32: 51.3252952 | K32: 98.72434579
A33: PLANEACIÓN | B33: 1277.47619 | C33: 300.3121774 | D33: 36.17124307 | E33: 34.97384847 | F33: 977.1640126 | G33: 23.50824068 | H33: 2.831461232 | I33: 2.737729967 | J33: 12.04454757 | K33: 96.68965042
A34: INFORMACIÓN ESTADÍSTICA | B34: 1174.1439 | C34: 300.1846315 | D34: 44.29165275 | E34: 44.09553223 | F34: 873.9592686 | G34: 25.56625567 | H34: 3.772250808 | I34: 3.755547529 | J34: 14.75480358 | K34: 99.55720658
A35: CULTURA | B35: 1090.762537 | C35: 267.6118209 | D35: 43.15731134 | E35: 40.26254818 | F35: 823.1507164 | G35: 24.53437955 | H35: 3.956618409 | I35: 3.691229466 | J35: 16.12683296 | K35: 93.29253127
A36: SISTEMA INTEGRAL DE VERDAD, JUSTICIA, REPARACIÓN Y NO REPETICIÓN | B36: 931.074301 | C36: 364.7405749 | D36: 90.34255788 | E36: 90.13904332 | F36: 566.3337261 | G36: 39.17416413 | H36: 9.703044943 | I36: 9.681186907 | J36: 24.76899037 | K36: 99.77473013
A37: EMPLEO PÚBLICO | B37: 613.8294937 | C37: 266.6763078 | D37: 30.96854613 | E37: 30.72352721 | F37: 347.1531859 | G37: 43.4446879 | H37: 5.045138177 | I37: 5.00522173 | J37: 11.61278495 | K37: 99.2088136
A38: DEPORTE Y RECREACIÓN | B38: 464.3658176 | C38: 25.76961565 | D38: 3.964312684 | E38: 3.964312684 | F38: 438.5962019 | G38: 5.549421314 | H38: 0.853704673 | I38: 0.853704673 | J38: 15.3836702 | K38: 100
A39: CIENCIA, TECNOLOGÍA E INNOVACIÓN | B39: 299.8643731 | C39: 150.6986907 | D39: 5.073913432 | E39: 5.073913432 | F39: 149.1656824 | G39: 50.25561695 | H39: 1.692069444 | I39: 1.692069444 | J39: 3.366926021 | K39: 100
A40: INTELIGENCIA | B40: 193.82 | C40: 29.88815542 | D40: 19.72999003 | E40: 18.4433324 | F40: 163.9318446 | G40: 15.42057343 | H40: 10.17954289 | I40: 9.515701374 | J40: 66.01273899 | K40: 93.47867068
A41: Fuente: Dirección General del Presupuesto Público Nacional- Subdirección de Análisis y Consolidación Presupuestal
B44: =+B8-'CUA1'!C27 -> 0 | C44: =+C8-'CUA1'!D27 -> 0 | D44: =+D8-'CUA1'!E27 -> 0 | E44: =+E8-'CUA1'!F27 -> 0 | F44: =+F8-'CUA1'!G27 -> 0

Sheet CUA5
A1: Cuadro No. 5
A2: Ejecución del presupuesto recursos Nación por sectores
A3: =+'CUA1'!A3:L3 -> Acumulada a Febrero 2025
A4: Miles de millones de pesos
A5: Sector | B5: Apropiación Vigente | C5: Compromiso | D5: Obligación | E5: Pago | F5: Apropiación sin comprometer | G5: Porcentaje de ejecución
B6: Vigente | G6: Comp./Apro. | H6: Oblig./Apro. | I6: Pago/Apro. | J6: Oblig./Comp. | K6: Pago/Oblig.
B7: (1) | C7: (2) | D7: (3) | E7: (4) | F7: (5)=(1-2) | G7: (6)=(2/1) | H7: (7)=(3/1) | I7: (8)=(4/1) | J7: (9)=(3/2) | K7: (10)=(4/3)
A8: TOTAL RECURSOS NACIÓN | B8: 495698.6686 | C8: 96702.20012 | D8: 46215.98157 | E8: 44386.93792 | F8: 398996.4685 | G8: 19.50826303 | H8: 9.3234024 | I8: 8.954419435 | J8: 47.79206834 | K8: 96.04240009
A9: SERVICIO DE LA DEUDA PÚBLICA NACIONAL | B9: 109828.422 | C9: 11574.08992 | D9: 10427.8674 | E9: 9355.534238 | F9: 98254.33208 | G9: 10.53833763 | H9: 9.49468927 | I9: 8.518317998 | J9: 90.09665095 | K9: 89.71665902
A10: EDUCACIÓN | B10: 79183.07766 | C10: 26885.7809 | D10: 10448.39604 | E10: 9898.257094 | F10: 52297.29677 | G10: 33.95394785 | H10: 13.19523861 | I10: 12.50047029 | J10: 38.86216317 | K10: 94.73470431
A11: SALUD Y PROTECCIÓN SOCIAL | B11: 66224.8852 | C11: 12396.50489 | D11: 9287.269771 | E11: 9287.135624 | F11: 53828.3803 | G11: 18.71880164 | H11: 14.02383672 | I11: 14.02363416 | J11: 74.91845363 | K11: 99.99855559
A12: DEFENSA Y POLICÍA | B12: 56165.00273 | C12: 10801.54888 | D12: 6457.310462 | E12: 6367.141401 | F12: 45363.45386 | G12: 19.23181403 | H12: 11.49703578 | I12: 11.33649264 | J12: 59.78133818 | K12: 98.60361274
A13: TRABAJO | B13: 50334.01156 | C13: 4088.105772 | D13: 2668.358307 | E13: 2663.722504 | F13: 46245.90579 | G13: 8.121955006 | H13: 5.301302686 | I13: 5.292092606 | J13: 65.2712639 | K13: 99.82626761
A14: HACIENDA | B14: 35376.49924 | C14: 4222.605845 | D14: 1931.92656 | E14: 1929.602614 | F14: 31153.89339 | G14: 11.9361891 | H14: 5.461045049 | I14: 5.454475868 | J14: 45.75199843 | K14: 99.87970836
A15: TRANSPORTE | B15: 12155.98193 | C15: 6171.111367 | D15: 87.30917099 | E15: 64.96180398 | F15: 5984.870562 | G15: 50.76604591 | H15: 0.7182403816 | I15: 0.5344019459 | J15: 1.414804657 | K15: 74.40433031
A16: RAMA JUDICIAL | B16: 10414.88358 | C16: 1441.704635 | D16: 1053.7964 | E16: 1042.917091 | F16: 8973.178943 | G16: 13.84273404 | H16: 10.11817743 | I16: 10.01371818 | J16: 73.09377901 | K16: 98.96760806
A17: INCLUSIÓN SOCIAL Y RECONCILIACIÓN | B17: 9985.928959 | C17: 915.4694834 | D17: 358.6454976 | E17: 358.0069848 | F17: 9070.459476 | G17: 9.167594594 | H17: 3.591508602 | I17: 3.585114477 | J17: 39.1761281 | K17: 99.82196547
A18: VIVIENDA, CIUDAD Y TERRITORIO | B18: 8625.806779 | C18: 2379.953623 | D18: 318.1163903 | E18: 318.0952192 | F18: 6245.853156 | G18: 27.59108433 | H18: 3.687961005 | I18: 3.687715566 | J18: 13.36649535 | K18: 99.99334486
A19: IGUALDAD Y EQUIDAD | B19: 7595.205123 | C19: 4681.102372 | D19: 330.6887989 | E19: 330.3011354 | F19: 2914.102751 | G19: 61.6323364 | H19: 4.353915313 | I19: 4.348811258 | J19: 7.064335975 | K19: 99.88277092
A20: MINAS Y ENERGÍA | B20: 7193.515649 | C20: 281.235492 | D20: 41.78021167 | E20: 41.60119483 | F20: 6912.280157 | G20: 3.909569475 | H20: 0.580803792 | I20: 0.5783152057 | J20: 14.8559527 | K20: 99.57152721
A21: FISCALÍA | B21: 7095.704065 | C21: 1466.403689 | D21: 859.6653577 | E21: 847.6711777 | F21: 5629.300375 | G21: 20.66607733 | H21: 12.11529328 | I21: 11.94625889 | J21: 58.62405857 | K21: 98.604785
A22: AGRICULTURA Y DESARROLLO RURAL | B22: 4901.967155 | C22: 974.8451681 | D22: 110.2849259 | E22: 100.3466625 | F22: 3927.121987 | G22: 19.88681559 | H22: 2.249809565 | I22: 2.047069255 | J22: 11.31307099 | K22: 90.98855684
A23: JUSTICIA Y DEL DERECHO | B23: 4420.209349 | C23: 973.5978003 | D23: 345.6086078 | E23: 312.4719349 | F23: 3446.611548 | G23: 22.02605631 | H23: 7.818828942 | I23: 7.069165965 | J23: 35.4980884 | K23: 90.41208111
A24: ORGANISMOS DE CONTROL | B24: 4396.345327 | C24: 674.0566598 | D24: 422.4672352 | E24: 421.5349853 | F24: 3722.288667 | G24: 15.33220459 | H24: 9.609509804 | I24: 9.588304694 | J24: 62.67532989 | K24: 99.77933203
A25: REGISTRADURÍA | B25: 4321.351017 | C25: 302.4900218 | D25: 106.645439 | E25: 103.9367679 | F25: 4018.860995 | G25: 6.999894722 | H25: 2.46787263 | I25: 2.405191512 | J25: 35.25585352 | K25: 97.46011539
A26: INTERIOR | B26: 4136.409104 | C26: 2134.517887 | D26: 242.7612323 | E26: 240.3679692 | F26: 2001.891216 | G26: 51.60316192 | H26: 5.868888358 | I26: 5.811029886 | J26: 11.37311773 | K26: 99.01414938
A27: PRESIDENCIA DE LA REPÚBLICA | B27: 2461.867466 | C27: 1225.779911 | D27: 62.3095954 | E27: 60.93246542 | F27: 1236.087555 | G27: 49.79065397 | H27: 2.530989026 | I27: 2.475050597 | J27: 5.083261263 | K27: 97.78985889
A28: AMBIENTE Y DESARROLLO SOSTENIBLE | B28: 1500.701187 | C28: 430.1619992 | D28: 70.93271214 | E28: 70.60991891 | F28: 1070.539188 | G28: 28.66406736 | H28: 4.72663797 | I28: 4.705128476 | J28: 16.48976718 | K28: 99.54493036
A29: RELACIONES EXTERIORES | B29: 1490.253752 | C29: 261.8372552 | D29: 174.7105885 | E29: 173.0856518 | F29: 1228.416497 | G29: 17.56997791 | H29: 11.72354629 | I29: 11.61450871 | J29: 66.72487779 | K29: 99.0699266
A30: CONGRESO DE LA REPÚBLICA | B30: 1313.628 | C30: 242.1342519 | D30: 124.2761196 | E30: 122.690786 | F30: 1071.493748 | G30: 18.43248256 | H30: 9.460526083 | I30: 9.339842484 | J30: 51.3252952 | K30: 98.72434579
A31: CULTURA | B31: 1068.4397 | C31: 263.5417618 | D31: 43.07002656 | E31: 40.18092939 | F31: 804.8979385 | G31: 24.66603981 | H31: 4.031114395 | I31: 3.760711005 | J31: 16.34277098 | K31: 93.29209335
A32: INFORMACIÓN ESTADÍSTICA | B32: 1051.190432 | C32: 290.9667741 | D32: 43.33488951 | E32: 43.19302888 | F32: 760.223658 | G32: 27.67973958 | H32: 4.122458518 | I32: 4.108963282 | J32: 14.89341512 | K32: 99.67264107
A33: PLANEACIÓN | B33: 1018.330446 | C33: 267.9333442 | D33: 19.76550998 | E33: 18.94924635 | F33: 750.3971018 | G33: 26.3110413 | H33: 1.940972113 | I33: 1.860815065 | J33: 7.37702507 | K33: 95.87026277
A34: SISTEMA INTEGRAL DE VERDAD, JUSTICIA, REPARACIÓN Y NO REPETICIÓN | B34: 931.074301 | C34: 364.7405749 | D34: 90.34255788 | E34: 90.13904332 | F34: 566.3337261 | G34: 39.17416413 | H34: 9.703044943 | I34: 9.681186907 | J34: 24.76899037 | K34: 99.77473013
A35: COMERCIO, INDUSTRIA Y TURISMO | B35: 896.5165075 | C35: 489.3485368 | D35: 41.4644327 | E35: 37.96379663 | F35: 407.1679708 | G35: 54.58332698 | H35: 4.625060705 | I35: 4.234589805 | J35: 8.473394644 | K35: 91.55749675
A36: TECNOLOGÍAS DE LA INFORMACIÓN Y LAS COMUNICACIONES | B36: 598.5730198 | C36: 285.5398299 | D36: 11.22704842 | E36: 11.22319238 | F36: 313.0331899 | G36: 47.70342472 | H36: 1.875635561 | I36: 1.874991355 | J36: 3.931867728 | K36: 99.96565398
A37: DEPORTE Y RECREACIÓN | B37: 464.3658176 | C37: 25.76961565 | D37: 3.964312684 | E37: 3.964312684 | F37: 438.5962019 | G37: 5.549421314 | H37: 0.853704673 | I37: 0.853704673 | J37: 15.3836702 | K37: 100
A38: CIENCIA, TECNOLOGÍA E INNOVACIÓN | B38: 299.8643731 | C38: 150.6986907 | D38: 5.073913432 | E38: 5.073913432 | F38: 149.1656824 | G38: 50.25561695 | H38: 1.692069444 | I38: 1.692069444 | J38: 3.366926021 | K38: 100
A39: INTELIGENCIA | B39: 193.82 | C39: 29.88815542 | D39: 19.72999003 | E39: 18.4433324 | F39: 163.9318446 | G39: 15.42057343 | H39: 10.17954289 | I39: 9.515701374 | J39: 66.01273899 | K39: 93.47867068
A40: EMPLEO PÚBLICO | B40: 54.83716489 | C40: 8.735010595 | D40: 6.882062543 | E40: 6.881902043 | F40: 46.1021543 | G40: 15.92899745 | H40: 12.54999699 | I40: 12.5497043 | J40: 78.78711156 | K40: 99.99766785
A41: Fuente: Dirección General del Presupuesto Público Nacional- Subdirección de Análisis y Consolidación Presupuestal
B44: =+B8-'CUA2'!C27 -> 0 | C44: =+C8-'CUA2'!D27 -> 0 | D44: =+D8-'CUA2'!E27 -> 0 | E44: =+E8-'CUA2'!F27 -> 0 | F44: =+F8-'CUA2'!G27 -> 0

Sheet CUA6
A1: Cuadro No. 6
A2: Ejecución del presupuesto recursos Propios por sectores
A3: =+'CUA1'!A3:L3 -> Acumulada a Febrero 2025
A4: Miles de millones de pesos
A5: Sector | B5: Apropiación Vigente | C5: Compromiso | D5: Obligación | E5: Pago | F5: Apropiación sin comprometer | G5: Porcentaje de ejecución
B6: Vigente | G6: Comp./Apro. | H6: Oblig./Apro. | I6: Pago/Apro. | J6: Oblig./Comp. | K6: Pago/Oblig.
B7: (1) | C7: (2) | D7: (3) | E7: (4) | F7: (5)=(1-2) | G7: (6)=(2/1) | H7: (7)=(3/1) | I7: (8)=(4/1) | J7: (9)=(3/2) | K7: (10)=(4/3)
A8: TOTAL RECURSOS PROPIOS | B8: 27336.46387 | C8: 9297.552758 | D8: 3544.978289 | E8: 3413.994537 | F8: 18038.91111 | G8: 34.01154152 | H8: 12.96794752 | I8: 12.48879355 | J8: 38.12807931 | K8: 96.30509014
A9: TRANSPORTE | B9: 4970.812742 | C9: 1666.097469 | D9: 244.2354024 | E9: 224.5887069 | F9: 3304.715273 | G9: 33.51760679 | H9: 4.913389722 | I9: 4.518148611 | J9: 14.65913051 | K9: 91.95583632
A10: IGUALDAD Y EQUIDAD | B10: 4422.270459 | C10: 1774.023971 | D10: 334.5831895 | E10: 334.4553326 | F10: 2648.246488 | G10: 40.11568236 | H10: 7.565868994 | I10: 7.56297779 | J10: 18.86012788 | K10: 99.96178623
A11: MINAS Y ENERGÍA | B11: 4020.927669 | C11: 2143.754157 | D11: 2046.243651 | E11: 2043.138195 | F11: 1877.173512 | G11: 53.31491471 | H11: 50.88983984 | I11: 50.81260753 | J11: 95.45141377 | K11: 99.84823629
A12: TRABAJO | B12: 3070.410329 | C12: 335.8165184 | D12: 167.4373079 | E12: 166.766512 | F12: 2734.59381 | G12: 10.93718697 | H12: 5.4532551 | I12: 5.431407991 | J12: 49.85975932 | K12: 99.59937489
A13: DEFENSA Y POLICÍA | B13: 2915.680235 | C13: 615.4693772 | D13: 247.094868 | E13: 186.2271714 | F13: 2300.210858 | G13: 21.10894637 | H13: 8.474690229 | I13: 6.387091738 | J13: 40.14738623 | K13: 75.36666905
A14: TECNOLOGÍAS DE LA INFORMACIÓN Y LAS COMUNICACIONES | B14: 2099.079433 | C14: 1144.993831 | D14: 130.8924523 | E14: 98.26177319 | F14: 954.0856022 | G14: 54.54742746 | H14: 6.235707435 | I14: 4.681184125 | J14: 11.43171681 | K14: 75.07061827
A15: JUSTICIA Y DEL DERECHO | B15: 1100.490459 | C15: 170.1204457 | D15: 51.88647661 | E15: 46.19930794 | F15: 930.3700135 | G15: 15.4586025 | H15: 4.7148502 | I15: 4.198065286 | J15: 30.49984757 | K15: 89.03920819
A16: SALUD Y PROTECCIÓN SOCIAL | B16: 878.205546 | C16: 277.1307646 | D16: 59.16226374 | E16: 56.89996551 | F16: 601.0747814 | G16: 31.55648081 | H16: 6.736721717 | I16: 6.479117078 | J16: 21.34814005 | K16: 96.1761128
A17: COMERCIO, INDUSTRIA Y TURISMO | B17: 627.9338246 | C17: 161.1687749 | D17: 30.90602448 | E17: 30.25730605 | F17: 466.7650497 | G17: 25.66652227 | H17: 4.921860118 | I17: 4.818550118 | J17: 19.17618626 | K17: 97.90099684
A18: RELACIONES EXTERIORES | B18: 605.084178 | C18: 232.3583983 | D18: 36.83352562 | E18: 36.75499343 | F18: 372.7257796 | G18: 38.40100383 | H18: 6.087339078 | I18: 6.074360356 | J18: 15.85203112 | K18: 99.78679155
A19: EMPLEO PÚBLICO | B19: 558.9923289 | C19: 257.9412972 | D19: 24.08648359 | E19: 23.84162516 | F19: 301.0510316 | G19: 46.14397799 | H19: 4.308911294 | I19: 4.265107754 | J19: 9.337971023 | K19: 98.98341979
A20: HACIENDA | B20: 525.8884612 | C20: 66.3681151 | D20: 35.87687075 | E20: 35.44848131 | F20: 459.5203461 | G20: 12.6201885 | H20: 6.822144504 | I20: 6.74068437 | J20: 54.0573899 | K20: 98.80594535
A21: AMBIENTE Y DESARROLLO SOSTENIBLE | B21: 280.6075056 | C21: 191.1000148 | D21: 99.02734677 | E21: 99.01156201 | F21: 89.50749073 | G21: 68.10224639 | H21: 35.29034142 | I21: 35.28471621 | J21: 51.81964368 | K21: 99.9840602
A22: REGISTRADURÍA | B22: 271.2497952 | C22: 110.7606008 | D22: 4.4940043 | E22: 4.292901187 | F22: 160.4891944 | G22: 40.83343205 | H22: 1.65677703 | I22: 1.582637577 | J22: 4.057403325 | K22: 95.52507965
A23: PLANEACIÓN | B23: 259.1457439 | C23: 32.37883315 | D23: 16.40573309 | E23: 16.02460212 | F23: 226.7669107 | G23: 12.49444913 | H23: 6.330697485 | I23: 6.183625431 | J23: 50.66808002 | K23: 97.6768428
A24: INTERIOR | B24: 175.999602 | C24: 24.83055844 | D24: 4.440246141 | E24: 3.761885607 | F24: 151.1690436 | G24: 14.10830375 | H24: 2.522872831 | I24: 2.137439838 | J24: 17.88218397 | K24: 84.72245654
A25: AGRICULTURA Y DESARROLLO RURAL | B25: 123.5732821 | C25: 37.87574386 | D25: 5.371122992 | E25: 2.179941306 | F25: 85.69753822 | G25: 30.65043125 | H25: 4.346508324 | I25: 1.764087891 | J25: 14.18090431 | K25: 40.58632263
A26: INFORMACIÓN ESTADÍSTICA | B26: 122.9534679 | C26: 9.217857405 | D26: 0.9567632435 | E26: 0.9025033475 | F26: 113.7356105 | G26: 7.49702921 | H26: 0.7781506773 | I26: 0.7340202458 | J26: 10.37945372 | K26: 94.32880638
A27: PRESIDENCIA DE LA REPÚBLICA | B27: 97.94056 | C27: 0 | D27: 0 | E27: 0 | F27: 97.94056 | G27: 0 | H27: 0 | I27: 0 | J27: 0 | K27: 0
A28: INCLUSIÓN SOCIAL Y RECONCILIACIÓN | B28: 66.18747203 | C28: 0 | D28: 0 | E28: 0 | F28: 66.18747203 | G28: 0 | H28: 0 | I28: 0 | J28: 0 | K28: 0
A29: EDUCACIÓN | B29: 59.66940273 | C29: 10.61690628 | D29: 1.667198369 | E29: 1.610077787 | F29: 49.05249645 | G29: 17.79288177 | H29: 2.794059086 | I29: 2.698330657 | J29: 15.70324089 | K29: 96.57385809
A30: FISCALÍA | B30: 41.465715 | C30: 30.44721875 | D30: 2.278228052 | E30: 2.278228052 | F30: 11.01849625 | G30: 73.42745386 | H30: 5.49424519 | I30: 5.49424519 | J30: 7.482548967 | K30: 100
A31: CULTURA | B31: 22.32283694 | C31: 4.070059084 | D31: 0.0872847794 | E31: 0.08161879473 | F31: 18.25277786 | G31: 18.2327143 | H31: 0.3910111408 | I31: 0.365629131 | J31: 2.144558042 | K31: 93.50862234
A32: ORGANISMOS DE CONTROL | B32: 19.57281803 | C32: 1.011845897 | D32: 1.011845897 | E32: 1.011845897 | F32: 18.56097214 | G32: 5.169648516 | H32: 5.169648516 | I32: 5.169648516 | J32: 100 | K32: 100
A33: Fuente: Dirección General del Presupuesto Público Nacional- Subdirección de Análisis y Consolidación Presupuestal
B36: =+B8-'CUA3'!C25 -> 0 | C36: =+C8-'CUA3'!D25 -> 0 | D36: =+D8-'CUA3'!E25 -> 0 | E36: =+E8-'CUA3'!F25 -> 0 | F36: =+F8-'CUA3'!G25 -> 0

Sheet CUA7
A1: Cuadro No. 7
A2: Ejecución del Presupuesto General de la Nación detallado por sector, entidad y rubro presupuestal
A3: Acumulada a Febrero 2025
A4: Cifras en Pesos
A5: Entidad/Detalle | B5: Apropiación Vigente | C5: Compromiso | D5: Obligación | E5: Pago | F5: Apropiación sin comprometer | G5: Porcentaje de Ejecución
G6: Comp/ Aprop | H6: Oblig/ Aprop | I6: Pago/ Aprop
A7: TOTAL | B7: 5.230351325e+14 | C7: 1.059997529e+14 | D7: 4.976095985e+13 | E7: 4.780093246e+13 | F7: 4.170353796e+14 | G7: =IFERROR(IF(C7>0,+C7/B7*100,0),0) -> 20.26627779 | H7: =IFERROR(IF(D7>0,+D7/B7*100,0),0) -> 9.513884779 | I7: =IFERROR(IF(E7>0,+E7/B7*100,0),0) -> 9.139143719
A8: TOTAL SIN DEUDA | B8: 410429946062670 | C8: 9.422719224e+13 | D8: 3.913462175e+13 | E8: 3.824692751e+13 | F8: 3.162027538e+14 | G8: =IFERROR(IF(C8>0,+C8/B8*100,0),0) -> 22.95816695 | H8: =IFERROR(IF(D8>0,+D8/B8*100,0),0) -> 9.535030794 | I8: 9.318746811
A9: AGRICULTURA Y DESARROLLO RURAL | B9: 5025540437000 | C9: 1.012720912e+12 | D9: 1.156560489e+11 | E9: 1.025266038e+11 | F9: 4.012819525e+12 | G9: =IFERROR(IF(C9>0,+C9/B9*100,0),0) -> 20.15148271 | H9: =IFERROR(IF(D9>0,+D9/B9*100,0),0) -> 2.301365403 | I9: 2.040111011
A10: 170101 Ministerio de Agricultura y Desarrollo Rural | B10: 1478725649864 | C10: 3.044158792e+11 | D10: 1.520185639e+10 | E10: 1.46391147e+10 | F10: 1.174309771e+12 | G10: =IFERROR(IF(C10>0,+C10/B10*100,0),0) -> 20.58636632 | H10: 1.028037648 | I10: 0.9899817932
A11: Funcionamiento | B11: 422852969000 | C11: 2.373841188e+11 | D11: 1.296414047e+10 | E11: 1.296005255e+10 | F11: 1.854688502e+11 | G11: 56.13869032 | H11: 3.065874293 | I11: 3.064907544
A12: Gastos de Personal | B12: 36807073000 | C12: 4410832888 | D12: 4410832888 | E12: 4410832888 | F12: 32396240112 | G12: 11.98365566 | H12: 11.98365566 | I12: 11.98365566
A13: 01-01-01-- SALARIO | B13: 24121006000 | C13: 2933147969 | D13: 2933147969 | E13: 2933147969 | F13: 21187858031 | G13: 12.16013946 | H13: 12.16013946 | I13: 12.16013946
A14: 01-01-02-- CONTRIBUCIONES INHERENTES A LA NÓMINA | B14: 8786830000 | C14: 1141844587 | D14: 1141844587 | E14: 1141844587 | F14: =+B14-C14 -> 7644985413 | G14: 12.9949548 | H14: 12.9949548 | I14: 12.9949548
A15: 01-01-03-- REMUNERACIONES NO CONSTITUTIVAS DE FACTOR SALARIAL | B15: 3899237000 | C15: 335840332 | D15: 335840332 | E15: 335840332 | F15: 3563396668 | G15: 8.612975615 | H15: 8.612975615 | I15: 8.612975615
A16: Adquisición de Bienes y Servicios | B16: 15682000000 | C16: 8224890009 | D16: 559964713.4 | E16: 559964713.4 | F16: 7457109991 | G16: 52.44796588 | H16: 3.570748077 | I16: 3.570748077
A17: 02---- ADQUISICIÓN DE BIENES Y SERVICIOS | B17: 15682000000 | C17: 8224890009 | D17: 559964713.4 | E17: 559964713.4 | F17: 7457109991 | G17: 52.44796588 | H17: 3.570748077 | I17: 3.570748077
A18: Transferencias | B18: 359289896000 | C18: 219138998458 | D18: 2384248458 | E18: 2380160533 | F18: 140150897542 | G18: =IFERROR(IF(C18>0,+C18/B18*100,0),0) -> 60.99225191 | H18: 0.6636001971 | I18: 0.6624624181
A19: 03-03-01-020- FONDO DE FOMENTO AGROPECUARIO DECRETO LEY 1279 DE 1994 | B19: 428816000 | C19: 0 | D19: 0 | E19: 0 | F19: 428816000 | G19: 0 | H19: 0 | I19: 0
A20: 03-03-01-067- DESARROLLO DE FUNCIONES DE APOYO AL SECTOR AGROPECUARIO EN CIENCIA, TECNOLOGÍA E INNOVACIÓN A CARGO DE CORPOICA A NIVEL NACIONAL. LEY 1731 DE 2014 | B20: 226754750000 | C20: 216754750000 | D20: 0 | E20: 0 | F20: 10000000000 | G20: =IFERROR(IF(C20>0,+C20/B20*100,0),0) -> 95.58994905 | H20: 0 | I20: 0
A21: 03-03-01-999- OTRAS TRANSFERENCIAS - DISTRIBUCIÓN PREVIO CONCEPTO DGPPN | B21: 30000000000 | C21: 0 | D21: 0 | E21: 0 | F21: 30000000000 | G21: 0 | H21: 0 | I21: 0
A22: 03-03-04-050- TRANSFERENCIA A LA SOCIEDAD FIDUCIARIA DE DESARROLLO AGROPECUARIO S.A. FIDUAGRARIA - PATRIMONIO AUTÓNOMO DE REMANENTES - INCODER EN LIQUIDACIÓN | B22: 2430000000 | C22: 0 | D22: 0 | E22: 0 | F22: 2430000000 | G22: 0 | H22: 0 | I22: 0
A23: 03-04-02-004- BONOS PENSIONALES (DE PENSIONES) | B23: 1558477000 | C23: 0 | D23: 0 | E23: 0 | F23: 1558477000 | G23: 0 | H23: 0 | I23: 0
A24: 03-04-02-012- INCAPACIDADES Y LICENCIAS DE MATERNIDAD Y PATERNIDAD (NO DE PENSIONES) | B24: 186000000 | C24: 14648689 | D24: 14648689 | E24: 14648689 | F24: 171351311 | G24: 7.875639247 | H24: 7.875639247 | I24: 7.875639247
A25: 03-04-02-080- MESADAS PENSIONALES DEL IDEMA (DE PENSIONES) | B25: 3556452000 | C25: 341599769 | D25: 341599769 | E25: 337511844 | F25: 3214852231 | G25: 9.605071824 | H25: 9.605071824 | I25: 9.490127914
A26: 03-06-01-001- FORTALECIMIENTO DE LAS ASOCIACIONES Y LIGAS DE CONSUMIDORES (LEY 73 DE 1981 Y DECRETO 1320 DE 1982) | B26: 846284000 | C26: 0 | D26: 0 | E26: 0 | F26: 846284000 | G26: 0 | H26: 0 | I26: 0
A27: 03-11-02-001- TRANSFERENCIAS AL SECTOR AGRÍCOLA Y SECTOR INDUSTRIAL PARA APOYO A LA PRODUCCIÓN - ARTÍCULO 1 LEY 16 DE 1990 Y ARTÍCULO 1 LEY 101 DE 1993; LEY 795 DE 2003 | B27: 43526700000 | C27: 0 | D27: 0 | E27: 0 | F27: 43526700000 | G27: 0 | H27: 0 | I27: 0
A28: 03-11-06-004- APERTURA Y/U OPERACIÓN OFICINAS DE LA RED SOCIAL DEL BANCO AGRARIO A NIVEL NACIONAL. LEY 795 DE 2003 | B28: 2330000000 | C28: 0 | D28: 0 | E28: 0 | F28: 2330000000 | G28: 0 | H28: 0 | I28: 0
A29: 03-02-02-- A ORGANIZACIONES INTERNACIONALES | B29: 4103000000 | C29: 0 | D29: 0 | E29: 0 | F29: 4103000000 | G29: 0 | H29: 0 | I29: 0
A30: 03-10--- SENTENCIAS Y CONCILIACIONES | B30: 4500000000 | C30: 28000000 | D30: 28000000 | E30: 28000000 | F30: 4472000000 | G30: 0.6222222222 | H30: 0.6222222222 | I30: 0.6222222222
A31: 03-04-02-009- OBLIGACIONES CONVENCIONALES PENSIONADOS DEL IDEMA (OTRAS PRESTACIONES DE JUBILACIÓN) | B31: 121165000 | C31: 0 | D31: 0 | E31: 0 | F31: 121165000 | G31: 0 | H31: 0 | I31: 0
A32: 03-03-04-071- FONDO PARA EL ACCESO A LOS INSUMOS AGROPECUARIOS -FAIA, LEY 2183 DE 2022 | B32: 20000000000 | C32: 0 | D32: 0 | E32: 0 | F32: 20000000000 | G32: 0 | H32: 0 | I32: 0
A33: 03-03-04-070- FONDO DE FOMENTO PARA LAS MUJERES RURALES -FOMMUR, LEY 731 DE 2002 | B33: 16948252000 | C33: 0 | D33: 0 | E33: 0 | F33: 16948252000 | G33: 0 | H33: 0 | I33: 0
A34: 03-03-01-080- TRANSFERENCIA PARA ENTIDADES EN PROCESO DE LIQUIDACIÓN | B34: 2000000000 | C34: 2000000000 | D34: 2000000000 | E34: 2000000000 | F34: 0 | G34: 100 | H34: 100 | I34: 100
A35: Gastos por Tributos, Multas, Sanciones e Intereses de Mora | B35: 11074000000 | C35: 5609397413 | D35: 5609094413 | E35: 5609094413 | F35: 5464602587 | G35: 50.65376028 | H35: 50.65102414 | I35: 50.65102414
A36: 08-01--- IMPUESTOS | B36: 7737000000 | C36: 5609397413 | D36: 5609094413 | E36: 5609094413 | F36: 2127602587 | G36: 72.50093593 | H36: 72.49701968 | I36: 72.49701968
A37: 08-03--- TASAS Y DERECHOS ADMINISTRATIVOS | B37: 34000000 | C37: 0 | D37: 0 | E37: 0 | F37: 34000000 | G37: 0 | H37: 0 | I37: 0
A38: 08-04-01-- CUOTA DE FISCALIZACIÓN Y AUDITAJE | B38: 3303000000 | C38: 0 | D38: 0 | E38: 0 | F38: 3303000000 | G38: 0 | H38: 0 | I38: 0
A39: Inversión | B39: 1055872680864 | C39: 67031760439 | D39: 2237715913 | E39: 1679062157 | F39: 988840920425 | G39: 6.348470005 | H39: 0.2119304679 | I39: 0.159021271
A40: A-Inversión | B40: 1055872680864 | C40: 67031760439 | D40: 2237715913 | E40: 1679062157 | F40: 988840920425 | G40: 6.348470005 | H40: 0.2119304679 | I40: 0.159021271
A41: 1702-1100-19-30101B- 3. DERECHO HUMANO A LA ALIMENTACIÓN / B. PROVEER ACCESO A FACTORES PRODUCTIVOS EN FORMA OPORTUNA Y SIMULTÁNEA | B41: 63102000000 | C41: 1200000000 | D41: 0 | E41: 0 | F41: 61902000000 | G41: 1.901682989 | H41: 0 | I41: 0
A42: 1702-1100-20-30101B- 3. DERECHO HUMANO A LA ALIMENTACIÓN / B. PROVEER ACCESO A FACTORES PRODUCTIVOS EN FORMA OPORTUNA Y SIMULTÁNEA | B42: 60000000000 | C42: 2100550000 | D42: 0 | E42: 0 | F42: 57899450000 | G42: 3.500916667 | H42: 0 | I42: 0
A43: 1702-1100-21-30101B- 3. DERECHO HUMANO A LA ALIMENTACIÓN / B. PROVEER ACCESO A FACTORES PRODUCTIVOS EN FORMA OPORTUNA Y SIMULTÁNEA | B43: 100000000000 | C43: 1178714008 | D43: 3341951 | E43: 3341951 | F43: 98821285992 | G43: 1.178714008 | H43: 0.003341951 | I43: 0.003341951
A44: 1703-1100-8-30101B- 3. DERECHO HUMANO A LA ALIMENTACIÓN / B. PROVEER ACCESO A FACTORES PRODUCTIVOS EN FORMA OPORTUNA Y SIMULTÁNEA | B44: 480000000000 | C44: 4129100745 | D44: 0 | E44: 0 | F44: 475870899255 | G44: 0.8602293219 | H44: 0 | I44: 0
A45: 1708-1100-3-40403A- 4. TRANSFORMACIÓN PRODUCTIVA, INTERNACIONALIZACIÓN Y ACCIÓN CLÍMATICA / A. MODELOS DE PRODUCCIÓN SOSTENIBLE Y REGENERATIVOS EN AGRICULTURA Y GANADERÍA | B45: 56898000000 | C45: 1184836762 | D45: 0 | E45: 0 | F45: 55713163238 | G45: 2.082387363 | H45: 0 | I45: 0
A46: 1709-1100-6-30101B- 3. DERECHO HUMANO A LA ALIMENTACIÓN / B. PROVEER ACCESO A FACTORES PRODUCTIVOS EN FORMA OPORTUNA Y SIMULTÁNEA | B46: 130000000000 | C46: 7588695351 | D46: 14381282 | E46: 14381282 | F46: 122411304649 | G46: 5.837457962 | H46: 0.01106252462 | I46: 0.01106252462
A47: 1799-1100-9-53105B- 5. CONVERGENCIA REGIONAL / B. ENTIDADES PÚBLICAS TERRITORIALES Y NACIONALES FORTALECIDAS | B47: 33157874072 | C47: 24502233852 | D47: 2074322549 | E47: 1515668793 | F47: 8655640220 | G47: 73.89567196 | H47: 6.255897301 | I47: 4.571067463
A48: 1799-1100-16-30206D- 3. DERECHO HUMANO A LA ALIMENTACIÓN / D. MINISTERIO DE AGRICULTURA Y DESARROLLO RURAL COMO RECTOR DEL DISEÑO DE POLÍTICA | B48: 12000000000 | C48: 2867433088 | D48: 8678924 | E48: 8678924 | F48: 9132566912 | G48: 23.89527573 | H48: 0.07232436667 | I48: 0.07232436667
A49: 1799-1100-17-30206D- 3. DERECHO HUMANO A LA ALIMENTACIÓN / D. MINISTERIO DE AGRICULTURA Y DESARROLLO RURAL COMO RECTOR DEL DISEÑO DE POLÍTICA | B49: 41714806792 | C49: 10605216795 | D49: 22392412 | E49: 22392412 | F49: 31109589997 | G49: 25.42314734 | H49: 0.05367976918 | I49: 0.05367976918
A50: 1701-1100-4-51103F- 5. CONVERGENCIA REGIONAL / F. PROVISIÓN Y MEJORAMIENTO DE VIVIENDA RURAL | B50: 40000000000 | C50: 794076542 | D50: 0 | E50: 0 | F50: 39205923458 | G50: 1.985191355 | H50: 0 | I50: 0
A51: 1708-1100-5-40403A- 4. TRANSFORMACIÓN PRODUCTIVA, INTERNACIONALIZACIÓN Y ACCIÓN CLÍMATICA / A. MODELOS DE PRODUCCIÓN SOSTENIBLE Y REGENERATIVOS EN AGRICULTURA Y GANADERÍA | B51: 15000000000 | C51: 1161689912 | D51: 0 | E51: 0 | F51: 13838310088 | G51: 7.744599413 | H51: 0 | I51: 0
A52: 1799-1100-19-30206D- 3. DERECHO HUMANO A LA ALIMENTACIÓN / D. MINISTERIO DE AGRICULTURA Y DESARROLLO RURAL COMO RECTOR DEL DISEÑO DE POLÍTICA | B52: 14000000000 | C52: 6549246717 | D52: 104598795 | E52: 104598795 | F52: 7450753283 | G52: 46.78033369 | H52: 0.74713425 | I52: 0.74713425
A53: 1799-1100-20-30206D- 3. DERECHO HUMANO A LA ALIMENTACIÓN / D. MINISTERIO DE AGRICULTURA Y DESARROLLO RURAL COMO RECTOR DEL DISEÑO DE POLÍTICA | B53: 10000000000 | C53: 3169966667 | D53: 10000000 | E53: 10000000 | F53: 6830033333 | G53: 31.69966667 | H53: 0.1 | I53: 0.1
A54: 170106 Unidad de Planificación de Tierras Rurales, Adecuación de Tierras y Usos Agropecuarios-UPRA | B54: 55200868224 | C54: 3.7489687e+10 | D54: 2174265187 | E54: 2172042799 | F54: 1.771118123e+10 | G54: 67.91503142 | H54: 3.938824256 | I54: 3.934798254
A55: Funcionamiento | B55: 14000585000 | C55: 3467170950 | D55: 1807845187 | E55: 1805622799 | F55: 10533414050 | G55: 24.76447198 | H55: 12.91264034 | I55: 12.89676681
A56: Gastos de Personal | B56: 10927436000 | C56: 1465930893 | D56: 1465930893 | E56: 1465930893 | F56: 9461505107 | G56: 13.41514051 | H56: 13.41514051 | I56: 13.41514051
A57: 01-01-01-- SALARIO | B57: 7170502000 | C57: 982430527 | D57: 982430527 | E57: 982430527 | F57: 6188071473 | G57: 13.70100067 | H57: 13.70100067 | I57: 13.70100067
A58: 01-01-02-- CONTRIBUCIONES INHERENTES A LA NÓMINA | B58: 2622333000 | C58: 387739153 | D58: 387739153 | E58: 387739153 | F58: 2234593847 | G58: 14.78603797 | H58: 14.78603797 | I58: 14.78603797
A59: 01-01-03-- REMUNERACIONES NO CONSTITUTIVAS DE FACTOR SALARIAL | B59: 1134601000 | C59: 95761213 | D59: 95761213 | E59: 95761213 | F59: 1038839787 | G59: 8.440078318 | H59: 8.440078318 | I59: 8.440078318
A60: Adquisición de Bienes y Servicios | B60: 2919381000 | C60: 2000669137 | D60: 341343374.1 | E60: 339120986.1 | F60: 918711863 | G60: 68.53059388 | H60: 11.69232019 | I60: 11.61619487
A61: 02---- ADQUISICIÓN DE BIENES Y SERVICIOS | B61: 2919381000 | C61: 2000669137 | D61: 341343374.1 | E61: 339120986.1 | F61: 918711863 | G61: 68.53059388 | H61: 11.69232019 | I61: 11.61619487
A62: Transferencias | B62: 36755000 | C62: 570920 | D62: 570920 | E62: 570920 | F62: 36184080 | G62: 1.553312474 | H62: 1.553312474 | I62: 1.553312474
A63: 03-04-02-012- INCAPACIDADES Y LICENCIAS DE MATERNIDAD Y PATERNIDAD (NO DE PENSIONES) | B63: 36755000 | C63: 570920 | D63: 570920 | E63: 570920 | F63: 36184080 | G63: 1.553312474 | H63: 1.553312474 | I63: 1.553312474
A64: Gastos por Tributos, Multas, Sanciones e Intereses de Mora | B64: 117013000 | C64: 0 | D64: 0 | E64: 0 | F64: 117013000 | G64: 0 | H64: 0 | I64: 0
A65: 08-03--- TASAS Y DERECHOS ADMINISTRATIVOS | B65: 413000 | C65: 0 | D65: 0 | E65: 0 | F65: 413000 | G65: 0 | H65: 0 | I65: 0
A66: 08-04-01-- CUOTA DE FISCALIZACIÓN Y AUDITAJE | B66: 116600000 | C66: 0 | D66: 0 | E66: 0 | F66: 116600000 | G66: 0 | H66: 0 | I66: 0
A67: Inversión | B67: 41200283224 | C67: 3.402251605e+10 | D67: 366420000 | E67: 366420000 | F67: 7177767176 | G67: 82.57835477 | H67: 0.8893628182 | I67: 0.8893628182
A68: A-Inversión | B68: 41200283224 | C68: 3.402251605e+10 | D68: 366420000 | E68: 366420000 | F68: 7177767176 | G68: 82.57835477 | H68: 0.8893628182 | I68: 0.8893628182
A69: 1704-1100-9-30101A- 3. DERECHO HUMANO A LA ALIMENTACIÓN / A. ORDENAR LA PRODUCCIÓN AGROPECUARIA | B69: 15000000000 | C69: 13892284846 | D69: 24403950 | E69: 24403950 | F69: 1107715154 | G69: 92.61523231 | H69: 0.162693 | I69: 0.162693
A70: 1704-1100-10-30206C- 3. DERECHO HUMANO A LA ALIMENTACIÓN / C. PRODUCCIÓN DE INFORMACIÓN PARA MEJORAR LA TOMA DE DECISIONES | B70: 8000000000 | C70: 7026001566 | D70: 35576667 | E70: 35576667 | F70: 973998433.7 | G70: 87.82501958 | H70: 0.4447083375 | I70: 0.4447083375
A71: 1704-1100-11-30206C- 3. DERECHO HUMANO A LA ALIMENTACIÓN / C. PRODUCCIÓN DE INFORMACIÓN PARA MEJORAR LA TOMA DE DECISIONES | B71: 3000000000 | C71: 2742250000 | D71: 35825835 | E71: 35825835 | F71: 257750000 | G71: 91.40833333 | H71: 1.1941945 | I71: =IFERROR(IF(E71>0,+E71/B71*100,0),0) -> 1.1941945
A72: 1799-1100-3-53105B- 5. CONVERGENCIA REGIONAL / B. ENTIDADES PÚBLICAS TERRITORIALES Y NACIONALES FORTALECIDAS | B72: 12200283224 | C72: 7453492136 | D72: 259151881 | E72: 259151881 | F72: 4746791088 | G72: 61.09277956 | H72: 2.124146434 | I72: 2.124146434
A73: 1704-1100-11-10303A- 1. ORDENAMIENTO DEL TERRITORIO ALREDEDOR DEL AGUA YJUSTICIA AMBIENTAL / A. ARMONIZACIÓN Y RACIONALIZACIÓN DE LOS INSTRUMENTOS DE ORDENAMIENTO Y PLANIFICACIÓN TERRITORIAL | B73: 3000000000 | C73: 2908487500 | D73: 11461667 | E73: 11461667 | F73: 91512500 | G73: 96.94958333 | H73: =IFERROR(IF(D73>0,+D73/B73*100,0),0) -> 0.3820555667 | I73: 0.3820555667
A74: 170200 Instituto Colombiano Agropecuario (ICA) | B74: 490263615733 | C74: 1.79587638e+11 | D74: 3.843955767e+10 | E74: 2.757335404e+10 | F74: =+B74-C74 -> 3.106759777e+11 | G74: =IFERROR(IF(C74>0,+C74/B74*100,0),0) -> 36.6308313 | H74: 7.840589519 | I74: 5.624189344
A75: Funcionamiento | B75: 219595508000 | C75: 6.248141977e+10 | D75: 2.675326216e+10 | E75: 2.48057779e+10 | F75: 1.571140882e+11 | G75: 28.45295896 | H75: 12.18297332 | I75: 11.29612264
A76: Gastos de Personal | B76: 141147808000 | C76: 19772650265 | D76: 19761575418 | E76: 19761575418 | F76: 121375157735 | G76: 14.00847136 | H76: 14.00062509 | I76: 14.00062509
A77: 01-01-01-- SALARIO | B77: 91070877000 | C77: 13228844074 | D77: 13228844074 | E77: 13228844074 | F77: 77842032926 | G77: 14.52587755 | H77: 14.52587755 | I77: 14.52587755
A78: 01-01-02-- CONTRIBUCIONES INHERENTES A LA NÓMINA | B78: 34518351000 | C78: 5218202263 | D78: 5218202263 | E78: 5218202263 | F78: 29300148737 | G78: 15.11718292 | H78: 15.11718292 | I78: 15.11718292
A79: 01-01-03-- REMUNERACIONES NO CONSTITUTIVAS DE FACTOR SALARIAL | B79: 13570391000 | C79: 1244072884 | D79: 1244072884 | E79: 1244072884 | F79: 12326318116 | G79: 9.167553713 | H79: 9.167553713 | I79: 9.167553713
A80: 01-02-01-- SALARIO | B80: 1337223000 | C80: 67597206 | D80: 56522359 | E80: 56522359 | F80: 1269625794 | G80: 5.055043624 | H80: 4.226846158 | I80: 4.226846158
A81: 01-02-03-- REMUNERACIONES NO CONSTITUTIVAS DE FACTOR SALARIAL | B81: 19976000 | C81: 0 | D81: 0 | E81: 0 | F81: 19976000 | G81: 0 | H81: 0 | I81: 0
A82: 01-02-02-- CONTRIBUCIONES INHERENTES A LA NÓMINA | B82: 630990000 | C82: 13933838 | D82: 13933838 | E82: 13933838 | F82: 617056162 | G82: 2.20825021 | H82: 2.20825021 | I82: 2.20825021
A83: Adquisición de Bienes y Servicios | B83: 58402409000 | C83: 4.143380025e+10 | D83: 5730640540 | E83: 4177590313 | F83: 1.696860875e+10 | G83: 70.94536161 | H83: 9.812335893 | I83: 7.153113005
A84: 02---- ADQUISICIÓN DE BIENES Y SERVICIOS | B84: 58402409000 | C84: 4.143380025e+10 | D84: 5730640540 | E84: 4177590313 | F84: 1.696860875e+10 | G84: 70.94536161 | H84: 9.812335893 | I84: 7.153113005
A85: Transferencias | B85: 14672463000 | C85: 699042730 | D85: 685119681 | E85: 663816229 | F85: 13973420270 | G85: 4.764317552 | H85: 4.669425174 | I85: 4.524231746
A86: 03-04-02-001- MESADAS PENSIONALES (DE PENSIONES) | B86: 140372000 | C86: 17200516 | D86: 17200516 | E86: 17200516 | F86: 123171484 | G86: 12.25352349 | H86: 12.25352349 | I86: 12.25352349
A87: 03-04-02-002- CUOTAS PARTES PENSIONALES (DE PENSIONES) | B87: 36670000 | C87: 0 | D87: 0 | E87: 0 | F87: 36670000 | G87: 0 | H87: 0 | I87: 0
A88: 03-04-02-022- PROGRAMAS DE VIVIENDA Y OTROS (NO DE PENSIONES) | B88: 2441421000 | C88: 495435165 | D88: 495435165 | E88: 495435165 | F88: 1945985835 | G88: 20.29290176 | H88: 20.29290176 | I88: 20.29290176
A89: 03-02-02-- A ORGANIZACIONES INTERNACIONALES | B89: 1000000000 | C89: 0 | D89: 0 | E89: 0 | F89: 1000000000 | G89: 0 | H89: 0 | I89: 0
A90: 03-10--- SENTENCIAS Y CONCILIACIONES | B90: 9054000000 | C90: 0 | D90: 0 | E90: 0 | F90: 9054000000 | G90: 0 | H90: 0 | I90: 0
A91: 03-03-01-085- FONDO NACIONAL DE EMERGENCIAS SANITARIAS Y FITOSANITARIAS DEL INSTITUTO COLOMBIANO AGROPECUARIO - ICA | B91: 2000000000 | C91: 186407049 | D91: 172484000 | E91: 151180548 | F91: 1813592951 | G91: 9.32035245 | H91: 8.6242 | I91: 7.5590274
A92: Adquisición de Activos Financieros | B92: 700000000 | C92: 0 | D92: 0 | E92: 0 | F92: 700000000 | G92: 0 | H92: 0 | I92: 0
A93: 06-01-04-011- PRÉSTAMOS DE CONSUMO | B93: 700000000 | C93: 0 | D93: 0 | E93: 0 | F93: 700000000 | G93: 0 | H93: 0 | I93: 0
A94: Gastos por Tributos, Multas, Sanciones e Intereses de Mora | B94: 4672828000 | C94: 575926518 | D94: 575926518 | E94: 202795938 | F94: 4096901482 | G94: 12.32500999 | H94: 12.32500999 | I94: 4.339897338
A95: 08-01--- IMPUESTOS | B95: 3572828000 | C95: 575926518 | D95: 575926518 | E95: 202795938 | F95: 2996901482 | G95: 16.11962619 | H95: 16.11962619 | I95: 5.676062156
A96: 08-04-01-- CUOTA DE FISCALIZACIÓN Y AUDITAJE | B96: 1100000000 | C96: 0 | D96: 0 | E96: 0 | F96: 1100000000 | G96: 0 | H96: 0 | I96: 0
A97: Inversión | B97: 270668107733 | C97: 1.171062182e+11 | D97: 11686295514 | E97: 2767576137 | F97: 1.535618895e+11 | G97: 43.26561382 | H97: 4.317573877 | I97: 1.022498055
A98: A-Inversión | B98: 270668107733 | C98: 1.171062182e+11 | D98: 11686295514 | E98: 2767576137 | F98: 1.535618895e+11 | G98: 43.26561382 | H98: 4.317573877 | I98: 1.022498055
A99: 1799-1100-3-53105B- 5. CONVERGENCIA REGIONAL / B. ENTIDADES PÚBLICAS TERRITORIALES Y NACIONALES FORTALECIDAS | B99: 68133621547 | C99: 19099339517 | D99: 1694748578 | E99: 518667088 | F99: 49034282030 | G99: 28.03218012 | H99: 2.487389543 | I99: 0.7612498444
A100: 1707-1100-6-30204A- 3. DERECHO HUMANO A LA ALIMENTACIÓN / A. POLÍTICA DE INOCUIDAD DE LOS ALIMENTOS PARA EL PAÍS | B100: 101267243093 | C100: 46943341203 | D100: 4836709024 | E100: 1101018527 | F100: 54323901890 | G100: 46.35589927 | H100: 4.776183173 | I100: 1.087240546
A101: 1707-1100-7-30204A- 3. DERECHO HUMANO A LA ALIMENTACIÓN / A. POLÍTICA DE INOCUIDAD DE LOS ALIMENTOS PARA EL PAÍS | B101: 101267243093 | C101: 5.10635375e+10 | D101: 5154837912 | E101: 1147890522 | F101: 5.020370559e+10 | G101: 50.42453605 | H101: 5.090331044 | I101: 1.133525992
A102: 171500 Autoridad Nacional de Acuicultura y Pesca - AUNAP | B102: 97937013996 | C102: 1.645366072e+10 | D102: 2400306760 | E102: 2400306760 | F102: 8.148335328e+10 | G102: 16.80024747 | H102: 2.45086782 | I102: 2.45086782
A103: Funcionamiento | B103: 24417000000 | C103: 6082864662 | D103: 2322240296 | E103: 2322240296 | F103: 1.833413534e+10 | G103: 24.91241619 | H103: 9.51075192 | I103: 9.51075192
A104: Gastos de Personal | B104: 15487800000 | C104: 1904462492 | D104: 1904462492 | E104: 1904462492 | F104: 13583337508 | G104: 12.29653335 | H104: 12.29653335 | I104: 12.29653335
A105: 01-01-01-- SALARIO | B105: 10359806000 | C105: 1305690161 | D105: 1305690161 | E105: 1305690161 | F105: 9054115839 | G105: 12.60342289 | H105: 12.60342289 | I105: 12.60342289
A106: 01-01-02-- CONTRIBUCIONES INHERENTES A LA NÓMINA | B106: 3785163000 | C106: 487651985 | D106: 487651985 | E106: 487651985 | F106: 3297511015 | G106: 12.88324928 | H106: 12.88324928 | I106: 12.88324928
A107: 01-01-03-- REMUNERACIONES NO CONSTITUTIVAS DE FACTOR SALARIAL | B107: 1342831000 | C107: 111120346 | D107: 111120346 | E107: 111120346 | F107: 1231710654 | G107: 8.275080483 | H107: 8.275080483 | I107: 8.275080483
A108: Adquisición de Bienes y Servicios | B108: 8416484000 | C108: 4171056595 | D108: 410432229.2 | E108: 410432229.2 | F108: 4245427405 | G108: 49.55818362 | H108: 4.876528361 | I108: 4.876528361
A109: 02---- ADQUISICIÓN DE BIENES Y SERVICIOS | B109: 8416484000 | C109: 4171056595 | D109: 410432229.2 | E109: 410432229.2 | F109: 4245427405 | G109: 49.55818362 | H109: 4.876528361 | I109: 4.876528361
A110: Transferencias | B110: 214198000 | C110: 6551518 | D110: 6551518 | E110: 6551518 | F110: 207646482 | G110: 3.058627065 | H110: 3.058627065 | I110: 3.058627065
A111: 03-04-02-012- INCAPACIDADES Y LICENCIAS DE MATERNIDAD Y PATERNIDAD (NO DE PENSIONES) | B111: 64198000 | C111: 6551518 | D111: 6551518 | E111: 6551518 | F111: 57646482 | G111: 10.20517462 | H111: 10.20517462 | I111: 10.20517462
A112: 03-10--- SENTENCIAS Y CONCILIACIONES | B112: 150000000 | C112: 0 | D112: 0 | E112: 0 | F112: 150000000 | G112: 0 | H112: 0 | I112: 0
A113: Gastos por Tributos, Multas, Sanciones e Intereses de Mora | B113: 298518000 | C113: 794057 | D113: 794057 | E113: 794057 | F113: 297723943 | G113: 0.2659997052 | H113: 0.2659997052 | I113: 0.2659997052
A114: 08-01--- IMPUESTOS | B114: 61000000 | C114: 794057 | D114: 794057 | E114: 794057 | F114: 60205943 | G114: 1.301732787 | H114: 1.301732787 | I114: 1.301732787
A115: 08-03--- TASAS Y DERECHOS ADMINISTRATIVOS | B115: 4518000 | C115: 0 | D115: 0 | E115: 0 | F115: 4518000 | G115: 0 | H115: 0 | I115: 0
A116: 08-04-01-- CUOTA DE FISCALIZACIÓN Y AUDITAJE | B116: 233000000 | C116: 0 | D116: 0 | E116: 0 | F116: 233000000 | G116: 0 | H116: 0 | I116: 0
A117: Inversión | B117: 73520013996 | C117: 10370796056 | D117: 78066464 | E117: 78066464 | F117: 63149217940 | G117: 14.10608553 | H117: 0.1061839624 | I117: 0.1061839624
A118: A-Inversión | B118: 73520013996 | C118: 10370796056 | D118: 78066464 | E118: 78066464 | F118: 63149217940 | G118: 14.10608553 | H118: 0.1061839624 | I118: 0.1061839624
A119: 1799-1100-3-53105B- 5. CONVERGENCIA REGIONAL / B. ENTIDADES PÚBLICAS TERRITORIALES Y NACIONALES FORTALECIDAS | B119: 4483717900 | C119: 1921613942 | D119: 34883940 | E119: 34883940 | F119: 2562103958 | G119: 42.85760132 | H119: 0.7780137105 | I119: 0.7780137105
A120: 1707-1100-6-30101B- 3. DERECHO HUMANO A LA ALIMENTACIÓN / B. PROVEER ACCESO A FACTORES PRODUCTIVOS EN FORMA OPORTUNA Y SIMULTÁNEA | B120: 3466308700 | C120: 464100000 | D120: 0 | E120: 0 | F120: 3002208700 | G120: 13.38888253 | H120: 0 | I120: 0
A121: 1707-1100-7-30101B- 3. DERECHO HUMANO A LA ALIMENTACIÓN / B. PROVEER ACCESO A FACTORES PRODUCTIVOS EN FORMA OPORTUNA Y SIMULTÁNEA | B121: 54383838596 | C121: 7343221175 | D121: 40321585 | E121: 40321585 | F121: 47040617421 | G121: 13.50257975 | H121: 0.07414258729 | I121: 0.07414258729
A122: 1708-1100-7-30101B- 3. DERECHO HUMANO A LA ALIMENTACIÓN / B. PROVEER ACCESO A FACTORES PRODUCTIVOS EN FORMA OPORTUNA Y SIMULTÁNEA | B122: 4266341700 | C122: 0 | D122: 0 | E122: 0 | F122: 4266341700 | G122: 0 | H122: 0 | I122: 0
A123: 1708-1100-6-30206C- 3. DERECHO HUMANO A LA ALIMENTACIÓN / C. PRODUCCIÓN DE INFORMACIÓN PARA MEJORAR LA TOMA DE DECISIONES - [PREVIO CONCEPTO DNP] | B123: 6919807100 | C123: 641860939 | D123: 2860939 | E123: 2860939 | F123: 6277946161 | G123: 9.275705662 | H123: 0.04134420163 | I123: 0.04134420163
A124: 171600 UAE Gestión de Restitución de Tierras Despojadas | B124: 536029566664 | C124: 1.769417478e+11 | D124: 3.270331343e+10 | E124: 3.110081386e+10 | F124: 3.590878189e+11 | G124: 33.00969923 | H124: 6.101027903 | I124: 5.802070593
A125: Funcionamiento | B125: 80608731000 | C125: 1.774148936e+10 | D125: 8995930984 | E125: 8984813860 | F125: 6.286724164e+10 | G125: 22.00938923 | H125: 11.15999579 | I125: 11.14620432
A126: Gastos de Personal | B126: 57297360000 | C126: 7856675794 | D126: 7817850292 | E126: 7817850292 | F126: 49440684206 | G126: 13.71210784 | H126: 13.64434643 | I126: 13.64434643
A127: 01-01-01-- SALARIO | B127: 38347846000 | C127: 5047725477 | D127: 5027834131 | E127: 5027834131 | F127: 33300120523 | G127: 13.16299611 | H127: 13.11112528 | I127: 13.11112528
A128: 01-01-02-- CONTRIBUCIONES INHERENTES A LA NÓMINA | B128: 13860077000 | C128: 2562995394 | D128: 2562034264 | E128: 2562034264 | F128: 11297081606 | G128: 18.49192753 | H128: 18.48499301 | I128: 18.48499301
A129: 01-01-03-- REMUNERACIONES NO CONSTITUTIVAS DE FACTOR SALARIAL | B129: 5089437000 | C129: 245954923 | D129: 227981897 | E129: 227981897 | F129: 4843482077 | G129: 4.83265483 | H129: 4.479511133 | I129: 4.479511133
A130: Adquisición de Bienes y Servicios | B130: 21891696000 | C130: 9802829245 | D130: 1096096368 | E130: 1084979244 | F130: 1.208886675e+10 | G130: 44.7787565 | H130: 5.006904753 | I130: 4.956122374
A131: 02---- ADQUISICIÓN DE BIENES Y SERVICIOS | B131: 21891696000 | C131: 9802829245 | D131: 1096096368 | E131: 1084979244 | F131: 1.208886675e+10 | G131: 44.7787565 | H131: 5.006904753 | I131: 4.956122374
A132: Transferencias | B132: 591000000 | C132: 81984324 | D132: 81984324 | E132: 81984324 | F132: 509015676 | G132: 13.87213604 | H132: 13.87213604 | I132: 13.87213604
A133: 03-04-02-012- INCAPACIDADES Y LICENCIAS DE MATERNIDAD Y PATERNIDAD (NO DE PENSIONES) | B133: 195000000 | C133: 81984324 | D133: 81984324 | E133: 81984324 | F133: 113015676 | G133: 42.04324308 | H133: 42.04324308 | I133: 42.04324308
A134: 03-10--- SENTENCIAS Y CONCILIACIONES | B134: 396000000 | C134: 0 | D134: 0 | E134: 0 | F134: 396000000 | G134: 0 | H134: 0 | I134: 0
A135: Gastos por Tributos, Multas, Sanciones e Intereses de Mora | B135: 828675000 | C135: 0 | D135: 0 | E135: 0 | F135: 828675000 | G135: 0 | H135: 0 | I135: =IFERROR(IF(E135>0,+E135/B135*100,0),0) -> 0
A136: 08-01--- IMPUESTOS | B136: 10300000 | C136: 0 | D136: 0 | E136: 0 | F136: 10300000 | G136: 0 | H136: 0 | I136: 0
A137: 08-04-01-- CUOTA DE FISCALIZACIÓN Y AUDITAJE | B137: 818375000 | C137: 0 | D137: 0 | E137: 0 | F137: 818375000 | G137: 0 | H137: =IFERROR(IF(D137>0,+D137/B137*100,0),0) -> 0 | I137: 0
A138: Inversión | B138: 455420835664 | C138: 1.592002584e+11 | D138: 2.370738245e+10 | E138: 2.2116e+10 | F138: =+B138-C138 -> 2.962205773e+11 | G138: =IFERROR(IF(C138>0,+C138/B138*100,0),0) -> 34.95673582 | H138: 5.205598996 | I138: 4.856167805
A139: A-Inversión | B139: 455420835664 | C139: 1.592002584e+11 | D139: 2.370738245e+10 | E139: 2.2116e+10 | F139: 2.962205773e+11 | G139: 34.95673582 | H139: 5.205598996 | I139: 4.856167805
A140: 1705-1100-6-10106B- 1. ORDENAMIENTO DEL TERRITORIO ALREDEDOR DEL AGUA Y JUSTICIA AMBIENTAL / B. COORDINACIÓN INSTITUCIONAL PARA OPTIMIZAR LA FORMALIZACIÓN | B140: 165972546289 | C140: 3.138970314e+10 | D140: 9049005326 | E140: 8841082022 | F140: 1.345828431e+11 | G140: 18.91258756 | H140: 5.452109718 | I140: 5.326833997
A141: 1705-1100-7-10106A- 1. ORDENAMIENTO DEL TERRITORIO ALREDEDOR DEL AGUA Y JUSTICIA AMBIENTAL / A. ACCESO Y FORMALIZACIÓN DE LA PROPIEDAD | B141: 548400710 | C141: 0 | D141: 0 | E141: 0 | F141: 548400710 | G141: 0 | H141: 0 | I141: 0
A142: 1705-1100-8-10106A- 1. ORDENAMIENTO DEL TERRITORIO ALREDEDOR DEL AGUA Y JUSTICIA AMBIENTAL / A. ACCESO Y FORMALIZACIÓN DE LA PROPIEDAD | B142: 132208667815 | C142: 19176447546 | D142: 942604923 | E142: 901218401 | F142: 113032220269 | G142: 14.50468253 | H142: 0.7129675675 | I142: 0.6816636276
A143: 1705-1100-9-10106A- 1. ORDENAMIENTO DEL TERRITORIO ALREDEDOR DEL AGUA Y JUSTICIA AMBIENTAL / A. ACCESO Y FORMALIZACIÓN DE LA PROPIEDAD | B143: 115908898130 | C143: 7.571760038e+10 | D143: 1.034785564e+10 | E143: 9762700835 | F143: 4.019129775e+10 | G143: 65.32509721 | H143: 8.927576573 | I143: 8.422736297
A144: 1799-1100-1-10106A- 1. ORDENAMIENTO DEL TERRITORIO ALREDEDOR DEL AGUA Y JUSTICIA AMBIENTAL / A. ACCESO Y FORMALIZACIÓN DE LA PROPIEDAD | B144: 40782322720 | C144: 3.291650733e+10 | D144: 3367916565 | E144: 2610998742 | F144: 7865815391 | G144: 80.71268416 | H144: 8.258275499 | I144: 6.402280615
A145: 171700 Agencia Nacional de Tierras - ANT | B145: 1653183524174 | C145: 2.511381048e+11 | D145: 1.734330801e+10 | E145: 1.73199267e+10 | F145: 1.402045419e+12 | G145: 15.19118121 | H145: 1.049085462 | I145: 1.047671141
A146: Funcionamiento | B146: 82539448000 | C146: 2.138898137e+10 | D146: 6370911021 | E146: 6347529714 | F146: 6.115046663e+10 | G146: 25.91364722 | H146: 7.71862567 | I146: 7.690298236
A147: Gastos de Personal | B147: 36986271000 | C147: 4602939688 | D147: 4602443276 | E147: 4602443276 | F147: 32383331312 | G147: 12.4449953 | H147: 12.44365315 | I147: 12.44365315
A148: 01-01-01-- SALARIO | B148: 24671812000 | C148: 3018251616 | D148: 3017755204 | E148: 3017755204 | F148: 21653560384 | G148: 12.23360334 | H148: 12.23159128 | I148: 12.23159128
A149: 01-01-02-- CONTRIBUCIONES INHERENTES A LA NÓMINA | B149: 9015066000 | C149: 1239066822 | D149: 1239066822 | E149: 1239066822 | F149: 7775999178 | G149: 13.74440101 | H149: 13.74440101 | I149: 13.74440101
A150: 01-01-03-- REMUNERACIONES NO CONSTITUTIVAS DE FACTOR SALARIAL | B150: 3299393000 | C150: 345621250 | D150: 345621250 | E150: 345621250 | F150: 2953771750 | G150: 10.47529803 | H150: 10.47529803 | I150: 10.47529803
A151: Adquisición de Bienes y Servicios | B151: 38496161000 | C151: 1.676182158e+10 | D151: 1748290064 | E151: 1724908757 | F151: 2.173433942e+10 | G151: 43.54154061 | H151: 4.541466003 | I151: 4.480729277
A152: 02---- ADQUISICIÓN DE BIENES Y SERVICIOS | B152: 38496161000 | C152: 1.676182158e+10 | D152: 1748290064 | E152: 1724908757 | F152: 2.173433942e+10 | G152: 43.54154061 | H152: 4.541466003 | I152: 4.480729277
A153: Transferencias | B153: 4215672000 | C153: 24220111 | D153: 20177681 | E153: 20177681 | F153: 4191451889 | G153: 0.5745255086 | H153: 0.4786349839 | I153: 0.4786349839
A154: 03-04-02-012- INCAPACIDADES Y LICENCIAS DE MATERNIDAD Y PATERNIDAD (NO DE PENSIONES) | B154: 143556000 | C154: 24220111 | D154: 20177681 | E154: 20177681 | F154: 119335889 | G154: 16.87154212 | H154: 14.05561662 | I154: 14.05561662
A155: 03-10--- SENTENCIAS Y CONCILIACIONES | B155: 4072116000 | C155: 0 | D155: 0 | E155: 0 | F155: 4072116000 | G155: 0 | H155: 0 | I155: 0
A156: Gastos por Tributos, Multas, Sanciones e Intereses de Mora | B156: 2841344000 | C156: 0 | D156: 0 | E156: 0 | F156: 2841344000 | G156: 0 | H156: 0 | I156: 0
A157: 08-01--- IMPUESTOS | B157: 200344000 | C157: 0 | D157: 0 | E157: 0 | F157: 200344000 | G157: 0 | H157: 0 | I157: 0
A158: 08-04-01-- CUOTA DE FISCALIZACIÓN Y AUDITAJE | B158: 2641000000 | C158: 0 | D158: 0 | E158: 0 | F158: 2641000000 | G158: 0 | H158: 0 | I158: 0
A159: Inversión | B159: 1570644076174 | C159: 229749123435 | D159: 10972396985 | E159: 10972396985 | F159: 1340894952739 | G159: 14.62770127 | H159: 0.6985921987 | I159: 0.6985921987
A160: A-Inversión | B160: 1570644076174 | C160: 229749123435 | D160: 10972396985 | E160: 10972396985 | F160: 1340894952739 | G160: 14.62770127 | H160: 0.6985921987 | I160: 0.6985921987
A161: 1799-1100-9-53105B- 5. CONVERGENCIA REGIONAL / B. ENTIDADES PÚBLICAS TERRITORIALES Y NACIONALES FORTALECIDAS | B161: 13297004342 | C161: 2199094877 | D161: 45721808 | E161: 45721808 | F161: 11097909465 | G161: 16.53827299 | H161: 0.3438504405 | I161: 0.3438504405
A162: 1704-1100-19-10106A- 1. ORDENAMIENTO DEL TERRITORIO ALREDEDOR DEL AGUA Y JUSTICIA AMBIENTAL / A. ACCESO Y FORMALIZACIÓN DE LA PROPIEDAD | B162: 234474550204 | C162: 8410251779 | D162: 130703825 | E162: 130703825 | F162: 2.260642984e+11 | G162: 3.586850586 | H162: 0.05574328851 | I162: 0.05574328851
A163: 1704-1100-20-10106A- 1. ORDENAMIENTO DEL TERRITORIO ALREDEDOR DEL AGUA Y JUSTICIA AMBIENTAL / A. ACCESO Y FORMALIZACIÓN DE LA PROPIEDAD | B163: 234474550204 | C163: 6764310715 | D163: 100447785 | E163: 100447785 | F163: 2.277102395e+11 | G163: 2.884880559 | H163: 0.04283952562 | I163: 0.04283952562
A164: 1704-1100-21-10106A- 1. ORDENAMIENTO DEL TERRITORIO ALREDEDOR DEL AGUA Y JUSTICIA AMBIENTAL / A. ACCESO Y FORMALIZACIÓN DE LA PROPIEDAD | B164: 21474642609 | C164: 7385807603 | D164: 262692578 | E164: 262692578 | F164: 14088835006 | G164: 34.39315726 | H164: 1.223268684 | I164: 1.223268684
A165: 1704-1100-21-53105B- 5. CONVERGENCIA REGIONAL / B. ENTIDADES PÚBLICAS TERRITORIALES Y NACIONALES FORTALECIDAS | B165: 22880803075 | C165: 300671376 | D165: 0 | E165: 0 | F165: 22580131699 | G165: 1.314077023 | H165: 0 | I165: 0
A166: 1704-1100-22-10106A- 1. ORDENAMIENTO DEL TERRITORIO ALREDEDOR DEL AGUA Y JUSTICIA AMBIENTAL / A. ACCESO Y FORMALIZACIÓN DE LA PROPIEDAD | B166: 80504875079 | C166: 28129734645 | D166: 684127289 | E166: 684127289 | F166: 52375140434 | G166: 34.94165368 | H166: 0.8497961003 | I166: 0.8497961003
A167: 1704-1100-23-10106A- 1. ORDENAMIENTO DEL TERRITORIO ALREDEDOR DEL AGUA Y JUSTICIA AMBIENTAL / A. ACCESO Y FORMALIZACIÓN DE LA PROPIEDAD | B167: 89207995636 | C167: 31909034186 | D167: 1128539834 | E167: 1128539834 | F167: 57298961450 | G167: 35.76925359 | H167: 1.265065789 | I167: 1.265065789
A168: 1704-1100-25-10106A- 1. ORDENAMIENTO DEL TERRITORIO ALREDEDOR DEL AGUA Y JUSTICIA AMBIENTAL / A. ACCESO Y FORMALIZACIÓN DE LA PROPIEDAD | B168: 844912995955 | C168: 129590511838 | D168: 7722752647 | E168: 7722752647 | F168: 715322484117 | G168: 15.33773447 | H168: 0.914029336 | I168: 0.914029336
A169: 1799-1100-10-53105B- 5. CONVERGENCIA REGIONAL / B. ENTIDADES PÚBLICAS TERRITORIALES Y NACIONALES FORTALECIDAS | B169: 29416659070 | C169: 15059706416 | D169: 897411219 | E169: 897411219 | F169: 14356952654 | G169: 51.19448262 | H169: 3.050690484 | I169: 3.050690484
A170: 171800 Agencia de Desarrollo Rural - ADR | B170: 714200198345 | C170: 4.669419452e+10 | D170: 7393441472 | E170: 7321044960 | F170: 6.675060038e+11 | G170: 6.537969974 | H170: 1.035205743 | I170: 1.025069018
A171: Funcionamiento | B171: 57526196000 | C171: 1.613750347e+10 | D171: 5396926609 | E171: 5395866609 | F171: 4.138869253e+10 | G171: 28.05244321 | H171: 9.381685188 | I171: 9.379842549
A172: Gastos de Personal | B172: 21987041000 | C172: 2361571173 | D172: 2361571173 | E172: 2361571173 | F172: 19625469827 | G172: 10.74074121 | H172: 10.74074121 | I172: 10.74074121
A173: 01-01-01-- SALARIO | B173: 15110970000 | C173: 1508175501 | D173: 1508175501 | E173: 1508175501 | F173: 13602794499 | G173: 9.98066637 | H173: 9.98066637 | I173: 9.98066637
A174: 01-01-02-- CONTRIBUCIONES INHERENTES A LA NÓMINA | B174: 1199287000 | C174: 564631877 | D174: 564631877 | E174: 564631877 | F174: 634655123 | G174: 47.08063016 | H174: 47.08063016 | I174: 47.08063016
A175: 01-01-03-- REMUNERACIONES NO CONSTITUTIVAS DE FACTOR SALARIAL | B175: 5676784000 | C175: 288763795 | D175: 288763795 | E175: 288763795 | F175: 5388020205 | G175: 5.086749734 | H175: 5.086749734 | I175: 5.086749734
A176: Adquisición de Bienes y Servicios | B176: 29292596000 | C176: 1.262873716e+10 | D176: 1888160300 | E176: 1887100300 | F176: 1.666385884e+10 | G176: 43.11238634 | H176: 6.445861952 | I176: 6.44224329
A177: 02---- ADQUISICIÓN DE BIENES Y SERVICIOS | B177: 29292596000 | C177: 1.262873716e+10 | D177: 1888160300 | E177: 1887100300 | F177: 1.666385884e+10 | G177: 43.11238634 | H177: 6.445861952 | I177: 6.44224329
A178: Transferencias | B178: 3996559000 | C178: 5464183 | D178: 5464183 | E178: 5464183 | F178: 3991094817 | G178: 0.1367221903 | H178: 0.1367221903 | I178: 0.1367221903
A179: 03-03-01-999- OTRAS TRANSFERENCIAS - DISTRIBUCIÓN PREVIO CONCEPTO DGPPN | B179: 261798000 | C179: 0 | D179: 0 | E179: 0 | F179: 261798000 | G179: 0 | H179: 0 | I179: 0
A180: 03-04-02-012- INCAPACIDADES Y LICENCIAS DE MATERNIDAD Y PATERNIDAD (NO DE PENSIONES) | B180: 145545000 | C180: 5464183 | D180: 5464183 | E180: 5464183 | F180: 140080817 | G180: 3.754291113 | H180: 3.754291113 | I180: 3.754291113
A181: 03-10--- SENTENCIAS Y CONCILIACIONES | B181: 3589216000 | C181: 0 | D181: 0 | E181: 0 | F181: 3589216000 | G181: 0 | H181: 0 | I181: 0
A182: Gastos por Tributos, Multas, Sanciones e Intereses de Mora | B182: 2250000000 | C182: 1141730953 | D182: 1141730953 | E182: 1141730953 | F182: 1108269047 | G182: 50.74359791 | H182: 50.74359791 | I182: 50.74359791
A183: 08-01--- IMPUESTOS | B183: 250000000 | C183: 73943155 | D183: 73943155 | E183: 73943155 | F183: 176056845 | G183: 29.577262 | H183: 29.577262 | I183: 29.577262
A184: 08-04-01-- CUOTA DE FISCALIZACIÓN Y AUDITAJE | B184: 2000000000 | C184: 1067787798 | D184: 1067787798 | E184: 1067787798 | F184: 932212202 | G184: 53.3893899 | H184: 53.3893899 | I184: 53.3893899
A185: Inversión | B185: 656674002345 | C185: 3.055669105e+10 | D185: 1996514863 | E185: 1925178351 | F185: 6.261173113e+11 | G185: 4.653251224 | H185: 0.3040344 | I185: 0.2931710931
A186: A-Inversión | B186: 656674002345 | C186: 3.055669105e+10 | D186: 1996514863 | E186: 1925178351 | F186: 6.261173113e+11 | G186: 4.653251224 | H186: 0.3040344 | I186: 0.2931710931
A187: 1709-1100-6-30101B- 3. DERECHO HUMANO A LA ALIMENTACIÓN / B. PROVEER ACCESO A FACTORES PRODUCTIVOS EN FORMA OPORTUNA Y SIMULTÁNEA | B187: 36908650863 | C187: 2876482108 | D187: 247762186 | E187: 230281208 | F187: 34032168755 | G187: 7.793517348 | H187: 0.671284862 | I187: 0.6239220416
A188: 1702-1100-14-30101B- 3. DERECHO HUMANO A LA ALIMENTACIÓN / B. PROVEER ACCESO A FACTORES PRODUCTIVOS EN FORMA OPORTUNA Y SIMULTÁNEA | B188: 347401848886 | C188: 9887664199 | D188: 537579841 | E188: 519503719 | F188: 3.375141847e+11 | G188: 2.846174892 | H188: 0.1547429418 | I188: 0.1495397105
A189: 1708-1100-5-30101C- 3. DERECHO HUMANO A LA ALIMENTACIÓN / C. SISTEMAS TERRITORIALES DE INNOVACIÓN, FORTALECIMIENTO DEL SISTEMA NACIONAL DE INNOVACIÓN AGROPECUARIA (SNIA) Y MISIÓN DE INVESTIGACIÓN E INNOVACIÓN | B189: 44396720780 | C189: 1787939289 | D189: 60776323 | E189: 57831518 | F189: 42608781491 | G189: 4.027187724 | H189: 0.1368937208 | I189: 0.1302607872
A190: 1708-1100-5-30101D- 3. DERECHO HUMANO A LA ALIMENTACIÓN / D. EXTENSIÓN TECNOLÓGICA AGROINDUSTRIA | B190: 34745794650 | C190: 0 | D190: 0 | E190: 0 | F190: 34745794650 | G190: 0 | H190: 0 | I190: 0
A191: 1709-1100-7-30101B- 3. DERECHO HUMANO A LA ALIMENTACIÓN / B. PROVEER ACCESO A FACTORES PRODUCTIVOS EN FORMA OPORTUNA Y SIMULTÁNEA | B191: 116422783387 | C191: 4625144305 | D191: 158244177 | E191: 155738763 | F191: 1.117976391e+11 | G191: 3.972714078 | H191: 0.1359220012 | I191: 0.1337700049
A192: 1799-1100-14-53105B- 5. CONVERGENCIA REGIONAL / B. ENTIDADES PÚBLICAS TERRITORIALES Y NACIONALES FORTALECIDAS | B192: 162970947 | C192: 162970947 | D192: 0 | E192: 0 | F192: 0 | G192: 100 | H192: 0 | I192: 0
A193: 1799-1100-15-53105B- 5. CONVERGENCIA REGIONAL / B. ENTIDADES PÚBLICAS TERRITORIALES Y NACIONALES FORTALECIDAS | B193: 6658969478 | C193: 1768443722 | D193: 81281671 | E193: 81281671 | F193: 4890525756 | G193: 26.55731834 | H193: 1.220634383 | I193: 1.220634383
A194: 1799-1100-16-53105B- 5. CONVERGENCIA REGIONAL / B. ENTIDADES PÚBLICAS TERRITORIALES Y NACIONALES FORTALECIDAS | B194: 10237078950 | C194: 351456327 | D194: 14826644 | E194: 14826644 | F194: 9885622623 | G194: 3.433170035 | H194: 0.1448327601 | I194: 0.1448327601
A195: 1702-1100-16-30101B- 3. DERECHO HUMANO A LA ALIMENTACIÓN / B. PROVEER ACCESO A FACTORES PRODUCTIVOS EN FORMA OPORTUNA Y SIMULTÁNEA | B195: 15339184404 | C195: 1530025782 | D195: 63687220 | E195: 53074314 | F195: 1.380915862e+10 | G195: 9.974622781 | H195: 0.4151930006 | I195: 0.3460047979
A196: 1702-1100-17-30201A- 3. DERECHO HUMANO A LA ALIMENTACIÓN / A. DESARROLLO DE REDES AGROLOGÍSTICAS | B196: 44400000000 | C196: 7566564375 | D196: 832356801 | E196: 812640514 | F196: 36833435625 | G196: 17.04181166 | H196: 1.87467748 | I196: 1.830271428
A197: AMBIENTE Y DESARROLLO SOSTENIBLE | B197: 1781308692870 | C197: 6.21262014e+11 | D197: 1.699600589e+11 | E197: 1.696214809e+11 | F197: 1.160046679e+12 | G197: 34.87671825 | H197: 9.541302953 | I197: 9.522295692
A198: 320101 Ministerio de Ambiente y Desarrollo Sostenible | B198: 919481215452 | C198: 1.779021251e+11 | D198: 2.572916992e+10 | E198: 2.568259892e+10 | F198: 7.415790904e+11 | G198: 19.34809783 | H198: 2.798226814 | I198: 2.793161893
A199: Funcionamiento | B199: 247840612000 | C199: 7.240613657e+10 | D199: 1.707982561e+10 | E199: 1.707982561e+10 | F199: 1.754344754e+11 | G199: 29.21479897 | H199: 6.891455548 | I199: =IFERROR(IF(E199>0,+E199/B199*100,0),0) -> 6.891455548
A200: Gastos de Personal | B200: 56233671000 | C200: 6431705602 | D200: 6431705602 | E200: 6431705602 | F200: 49801965398 | G200: 11.43746351 | H200: 11.43746351 | I200: 11.43746351
... 4626 more rows

Sheet CUA8
A1: CUADRO No. 8
A2: Rezago presupuestal del Presupuesto General de la Nación en 2024
A3: =+'CUA1'!A3:L3 -> Acumulada a Febrero 2025
A4: Miles de millones de pesos corrientes
B5: Concepto | C5: Rezago | D5: Pago | E5: Rezago por pagar | F5: Ejecución %
F6: Pago/Rezago
C7: (1) | D7: (2) | E7: (3)=(1-2) | F7: (4)=(2/1)
A8: I. | B8: FUNCIONAMIENTO | C8: 18495.88611 | D8: 8103.337132 | E8: 10392.54898 | F8: 43.81156481
B9: Gastos de Personal | C9: 571.6137096 | D9: 511.0601701 | E9: 60.55353944 | F9: 89.40656278
B10: Adquisición de Bienes y Servicios | C10: 4384.708114 | D10: 2179.72369 | E10: 2204.984424 | F10: 49.71194509
B11: Transferencias | C11: 13195.28451 | D11: 5223.116987 | E11: 7972.167522 | F11: 39.58320855
B12: Gastos de Comercialización y Producción | C12: 320.7575203 | D12: 170.0162 | E12: 150.7413203 | F12: 53.00458734
B13: Adquisición de Activos Financieros | C13: 5.023257736 | D13: 2.17571259 | E13: 2.847545146 | F13: 43.31278036
B14: Disminución de Pasivos | C14: 10.93833312 | D14: 10.263988 | E14: 0.674345119 | F14: 93.8350285
B15: Gastos por Tributos, Multas, Sanciones e Intereses de Mora | C15: 7.560667585 | D15: 6.980384498 | E15: 0.5802830864 | F15: 92.32497554
A16: II. | B16: SERVICIO DE LA DEUDA | C16: 7773.360726 | D16: 3030.781278 | E16: 4742.579448 | F16: 38.98933016
B17: Servicio de la Deuda Pública Externa | C17: 4028.158345 | D17: 3007.499599 | E17: 1020.658747 | F17: 74.66190107
B18: Principal | C18: 1770.995202 | D18: 1013.069517 | E18: 757.9256851 | F18: 57.20340269
B19: Intereses | C19: 2245.312495 | D19: 1992.455366 | E19: 252.8571289 | F19: 88.73844378
B20: Comisiones y Otros Gastos | C20: 11.85064825 | D20: 1.974715705 | E20: 9.875932542 | F20: 16.663356
B21: Servicio de la Deuda Pública Interna | C21: 3745.202381 | D21: 23.28167934 | E21: 3721.920701 | F21: 0.6216400869
B22: Principal | C22: 3460.391126 | D22: 1.912810341 | E22: 3458.478315 | F22: 0.05527728721
B23: Intereses | C23: 221.4578363 | D23: 0.01063211703 | E23: 221.4472042 | F23: 0.004800966724
B24: Comisiones y Otros Gastos | C24: 63.35341876 | D24: 21.35823688 | E24: 41.99518188 | F24: 33.71284028
B25: Fondo de Contingencias | F25: 0
A26: III. | B26: INVERSIÓN | C26: 36978.37673 | D26: 12156.31088 | E26: 24822.06585 | F26: 32.87410631
A27: IV. | B27: TOTAL (I + II + III) | C27: 63247.62357 | D27: 23290.42929 | E27: 39957.19428 | F27: 36.82419667
A28: V. | B28: TOTAL SIN DEUDA (I + III) | C28: 55474.26284 | D28: 20259.64801 | E28: 35214.61483 | F28: 36.52080618
A29: Fuente: Dirección General del Presupuesto Público Nacional- Subdirección de Análisis y Consolidación Presupuestal

Sheet CUA9
A1: Cuadro No. 9 | G1: 1000000000
A2: Reservas presupuestales del PGN de 2024 que se ejecutan en el 2025
A3: Acumulado a Febrero
A4: Miles de millones de pesos
B5: Concepto | C5: Reservas Presupuestales | D5: Pago | E5: Reservas por pagar | F5: Ejecución %
C6: presupuestal | F6: Pago/Reservas
C7: (1) | D7: (2) | E7: (3)=(1-2) | F7: (4)=(2/1)
A8: I. | B8: FUNCIONAMIENTO | C8: 17983.38556 | D8: 7641.612973 | E8: 10341.77259 | F8: 42.49262714 | H8: FUNCIONAMIENTO | I8: 17983.38556 | J8: 7641.612973 | K8: =+I8-C8 -> 0 | L8: =+J8-D8 -> 0
B9: Gastos de Personal | C9: 472.1833077 | D9: 411.8682172 | E9: 60.31509048 | F9: 87.22633996 | H9: Gastos de Personal | I9: 472.1833077 | J9: 411.8682172 | K9: =+I9-C9 -> 0 | L9: 0
B10: Adquisición de Bienes y Servicios | C10: 4195.062752 | D10: 1994.877709 | E10: 2200.185043 | F10: 47.55298852 | H10: Adquisición de Bienes y Servicios | I10: 4195.062752 | J10: 1994.877709 | K10: 0 | L10: 0
B11: Transferencias | C11: 13160.48377 | D11: 5194.59197 | E11: 7965.891803 | F11: 39.47113237 | H11: Transferencias | I11: 13160.48377 | J11: 5194.59197 | K11: 0 | L11: 0
B12: Gastos de Comercialización y Producción | C12: 137.2457628 | D12: 25.8311096 | E12: 111.4146532 | F12: 18.82106163 | H12: Gastos de Comercialización y Producción | I12: 137.2457628 | J12: 25.8311096 | K12: 0 | L12: 0
B13: Adquisición de Activos Financieros | C13: 4.658803368 | D13: 1.947258222 | E13: 2.711545146 | F13: 41.7973902 | H13: Adquisición de Activos Financieros | I13: 4.658803368 | J13: 1.947258222 | K13: 0 | L13: 0
B14: Disminución de Pasivos | C14: 10.58143075 | D14: 9.907085626 | E14: 0.674345119 | F14: 93.62708942 | H14: Disminución de Pasivos | I14: 10.58143075 | J14: 9.907085626 | K14: 0 | L14: 0
B15: Gastos por Tributos, Multas, Sanciones e Intereses de Mora | C15: 3.169729768 | D15: 2.589623018 | E15: 0.5801067508 | F15: 81.69854236 | H15: Gastos por Tributos, Multas, Sanciones e Intereses de Mora | I15: 3.169729768 | J15: 2.589623018 | K15: 0 | L15: 0
A16: II. | B16: SERVICIO DE LA DEUDA | C16: 7773.360726 | D16: 3030.781278 | E16: 4742.579448 | F16: 38.98933016 | H16: SERVICIO DE LA DEUDA | I16: 7773.360726 | J16: 3030.781278 | K16: 0 | L16: 0
B17: Servicio de la Deuda Pública Externa | C17: 4028.158345 | D17: 3007.499599 | E17: 1020.658747 | F17: 74.66190107 | H17: Servicio de la Deuda Pública Externa | I17: 4028.158345 | J17: 3007.499599 | K17: 0 | L17: 0
B18: Principal | C18: 1770.995202 | D18: 1013.069517 | E18: 757.9256851 | F18: 57.20340269 | H18: Principal | I18: 1770.995202 | J18: 1013.069517 | K18: 0 | L18: 0
B19: Intereses | C19: 2245.312495 | D19: 1992.455366 | E19: 252.8571289 | F19: 88.73844378 | H19: Intereses | I19: 2245.312495 | J19: 1992.455366 | K19: 0 | L19: 0
B20: Comisiones y Otros Gastos | C20: 11.85064825 | D20: 1.974715705 | E20: 9.875932542 | F20: 16.663356 | H20: Comisiones y Otros Gastos | I20: 11.85064825 | J20: 1.974715705 | K20: 0 | L20: 0
B21: Servicio de la Deuda Pública Interna | C21: 3745.202381 | D21: 23.28167934 | E21: 3721.920701 | F21: 0.6216400869 | H21: Servicio de la Deuda Pública Interna | I21: 3745.202381 | J21: 23.28167934 | K21: 0 | L21: 0
B22: Principal | C22: 3460.391126 | D22: 1.912810341 | E22: 3458.478315 | F22: 0.05527728721 | H22: Principal | I22: 3460.391126 | J22: 1.912810341 | K22: 0 | L22: 0
B23: Intereses | C23: 221.4578363 | D23: 0.01063211703 | E23: 221.4472042 | F23: 0.004800966724 | H23: Intereses | I23: 221.4578363 | J23: 0.01063211703 | K23: 0 | L23: 0
B24: Comisiones y Otros Gastos | C24: 63.35341876 | D24: 21.35823688 | E24: 41.99518188 | F24: 33.71284028 | H24: Comisiones y Otros Gastos | I24: 63.35341876 | J24: 21.35823688 | K24: 0 | L24: 0
B25: Fondo de Contingencias | C25: 0 | D25: 0 | E25: 0 | F25: 0 | H25: Fondo de contingencias | I25: 0 | J25: 0 | K25: 0 | L25: 0
A26: III. | B26: INVERSIÓN | C26: 35807.45166 | D26: 11011.49149 | E26: 24795.96016 | F26: 30.75195521 | H26: INVERSIÓN | I26: 35807.45166 | J26: 11011.49149 | K26: 0 | L26: 0
A27: IV. | B27: TOTAL (I + II + III) | C27: 61564.19794 | D27: 21683.88575 | E27: 39880.31219 | F27: 35.22158409 | H27: TOTAL (I + II + III) | I27: 61564.19794 | J27: 21683.88575 | K27: 0 | L27: 0
A28: V. | B28: TOTAL SIN DEUDA (I + III) | C28: 53790.83722 | D28: 18653.10447 | E28: 35137.73275 | F28: 34.67710382 | H28: TOTAL SIN DEUDA (I + III) | I28: 53790.83722 | J28: 18653.10447 | K28: 0 | L28: 0
A29: Fuente: Dirección General del Presupuesto Público Nacional-Subdirección de Análisis y Consolidación Presupuestal

Sheet CUA10
A1: Cuadro No. 10
A2: Cuentas por pagar del PGN de 2024 que se ejecutan en el 2025
A3: =+[1]CUA11!A3:F3 -> Acumulado a Febrero
A4: Miles de millones de pesos corrientes
B5: Concepto | C5: Cuentas por Pagar | D5: Pago | E5: Cuentas sin pagar | F5: Ejecución %
F6: Pago/Cuentas
C7: (1) | D7: (2) | E7: (3)=(1-2) | F7: (4)=(2/1)
A8: I. | B8: FUNCIONAMIENTO | C8: 512.5005514 | D8: 461.7241585 | E8: 50.77639293 | F8: 90.0924218 | H8: 408.4120593 | I8: 406.2075617 | J8: =+H8-C8 -> -104.0884921 | K8: =+I8-D8 -> -55.5165968
B9: Gastos de Personal | C9: 99.43040185 | D9: 99.19195289 | E9: 0.238448965 | F9: 99.76018505 | H9: 33.03304575 | I9: 33.01139416 | J9: =+H9-C9 -> -66.3973561 | K9: -66.18055873
B10: Adquisición de Bienes y Servicios | C10: 189.6453618 | D10: 184.8459807 | E10: 4.799381078 | F10: 97.46928634 | H10: 198.9744317 | I10: 198.9727557 | J10: 9.329069971 | K10: 14.12677498
B11: Transferencias | C11: 34.80073573 | D11: 28.52501625 | E11: 6.275719482 | F11: 81.96670458 | H11: 62.47458135 | I11: 60.39344836 | J11: 27.67384562 | K11: 31.86843211
B12: Gastos de Comercialización y Producción | C12: 183.5117575 | D12: 144.1850904 | E12: 39.32666707 | F12: 78.5699469 | H12: 107.6569445 | I12: 107.6569445 | J12: -75.85481297 | K12: -36.5281459
B13: Adquisición de Activos Financieros | C13: 0.3644543681 | D13: 0.2284543681 | E13: 0.136 | F13: 62.68394293 | H13: 4.3205215 | I13: 4.2205215 | J13: 3.956067132 | K13: 3.992067132
B14: Disminución de Pasivos | C14: 0.3569023729 | D14: 0.3569023729 | E14: 0 | F14: 100 | H14: 1.60507165 | I14: 1.60503464 | J14: 1.248169277 | K14: 1.248132267
B15: Gastos por Tributos, Multas, Sanciones e Intereses de Mora | C15: 4.390937816 | D15: 4.390761481 | E15: 0.00017633555 | F15: 99.9959841 | H15: 0.34746281 | I15: 0.34746281 | J15: -4.043475006 | K15: -4.043298671
A16: II. | B16: SERVICIO DE LA DEUDA | C16: 0 | D16: 0 | E16: 0 | F16: 0 | H16: 6.736498228 | I16: 6.736498228 | J16: 6.736498228 | K16: 6.736498228
B17: Servicio de la Deuda Pública Externa | C17: 0 | D17: 0 | E17: 0 | F17: 0 | H17: 0 | I17: 0 | J17: 0 | K17: 0
B18: Principal | C18: 0 | D18: 0 | E18: 0 | F18: 0 | H18: 0 | I18: 0 | J18: 0 | K18: 0
B19: Intereses | C19: 0 | D19: 0 | E19: 0 | F19: 0 | H19: 0 | I19: 0 | J19: 0 | K19: 0
B20: Comisiones y Otros Gastos | C20: 0 | D20: 0 | E20: 0 | F20: 0 | H20: 0 | I20: 0 | J20: 0 | K20: 0
B21: Servicio de la Deuda Pública Interna | C21: 0 | D21: 0 | E21: 0 | F21: 0 | H21: 6.736498228 | I21: 6.736498228 | J21: 6.736498228 | K21: 6.736498228
B22: Principal | C22: 0 | D22: 0 | E22: 0 | F22: 0 | H22: 0 | I22: 0 | J22: 0 | K22: 0
B23: Intereses | C23: 0 | D23: 0 | E23: 0 | F23: 0 | H23: 0 | I23: 0 | J23: 0 | K23: 0
B24: Comisiones y Otros Gastos | C24: 0 | D24: 0 | E24: 0 | F24: 0 | H24: 0 | I24: 0 | J24: 0 | K24: 0
B25: Fondo de Contingencias | C25: 0 | D25: 0 | E25: 0 | F25: 0 | H25: 6.736498228 | I25: 6.736498228 | J25: 6.736498228 | K25: 6.736498228
A26: III. | B26: INVERSIÓN | C26: 1170.925076 | D26: 1144.819385 | E26: 26.10569094 | F26: 97.77050714 | H26: 621.5026668 | I26: 621.4521532 | J26: -549.4224091 | K26: -523.3672317
A27: IV. | B27: TOTAL (I + II + III) | C27: 1683.425627 | D27: 1606.543543 | E27: 76.88208387 | F27: 95.43299789 | H27: 1036.651224 | I27: 1034.396213 | J27: -646.7744029 | K27: -572.1473303
A28: V. | B28: TOTAL SIN DEUDA (I + II) | C28: 1683.425627 | D28: 1606.543543 | E28: 76.88208387 | F28: 95.43299789 | H28: 1029.914726 | I28: 1027.659715 | J28: -653.5109011 | K28: -578.8838285
A29: Fuente: Dirección General del Presupuesto Público Nacional- Subdirección de Análisis y Consolidación Presupuestal
